Workbook

Sheet Notes
B2: Community Health Friends and Family Test (FFT) data - November 2021 | H2: Show data for:

Sheet Summary
B3: FFT | C3: Number of organisations submitting | D3: Total responses to date | E3: Responses | G3: Percentage Positive | I3: Percentage Negative
C4: 2021-11-01 | D4: 2021-11-01 | E4: 2021-11-01 | F4: 2021-10-27 | G4: 2021-11-01 | H4: 2021-10-27 | I4: 2021-11-01 | J4: 2021-10-27
B5: Community Health Overall | C5: 145 | D5: 7563224 | E5: 78144 | F5: 70513 | G5: 0.9349662162 | H5: 0.9281409102 | I5: 0.03118601556 | J5: 0.03708536015
B6: Community Inpatient Services | C6: 63 | D6: 272501 | E6: 2058 | F6: 1834 | G6: 0.9460641399 | H6: 0.953653217 | I6: 0.01409135083 | J6: 0.01254089422
B7: Community Nursing Services | C7: 88 | D7: 934725 | E7: 10055 | F7: 10098 | G7: 0.9449030333 | H7: 0.9421667657 | I7: 0.01929388364 | J7: 0.02238066944
B8: Rehabilitation and Therapy Services | C8: 89 | D8: 1419341 | E8: 15128 | F8: 11257 | G8: 0.932575357 | H8: 0.9360397975 | I8: 0.03153093601 | J8: 0.02824908946
B9: Specialist Services | C9: 89 | D9: 1692678 | E9: 18920 | F9: 17189 | G9: 0.9588266385 | H9: 0.9559602071 | I9: 0.01849894292 | J9: 0.02065274303
B10: Children and Family Services | C10: 78 | D10: 1168057 | E10: 7827 | F10: 5982 | G10: 0.9367573783 | H10: 0.9399866265 | I10: 0.03066308931 | J10: 0.03126044801
B11: Community Healthcare Other | C11: 89 | D11: 2075922 | E11: 24156 | F11: 24153 | G11: 0.9121129326 | H11: 0.8939262203 | I11: 0.04748302699 | J11: 0.06235250279

Sheet STP
A3: STP Code | B3: STP Name | C3: Total Responses | D3: Total Eligible | E3: Percentage Positive | F3: Percentage Negative | G3: Breakdown of Responses
G4: Very Good | H4: Good | I4: Neither Good nor Poor | J4: Poor | K4: Very Poor | L4: Don't Know
B5: England (including Independent Sector Providers) | C5: =SUM('[1]Organisation Level'!M:M) -> 78144 | D5: =SUM('[1]Organisation Level'!N:N) -> 2737735 | E5: =SUM(G5:H5)/SUM(G5:L5) -> 0.9349662162 | F5: =SUM(J5:K5)/SUM(G5:L5) -> 0.03118601556 | G5: =SUM('[1]Organisation Level'!G:G) -> 59716 | H5: =SUM('[1]Organisation Level'!H:H) -> 13346 | I5: =SUM('[1]Organisation Level'!I:I) -> 2059 | J5: =SUM('[1]Organisation Level'!J:J) -> 1020 | K5: =SUM('[1]Organisation Level'!K:K) -> 1417 | L5: =SUM('[1]Organisation Level'!L:L) -> 586
B6: England (excluding Independent Sector Providers) | C6: =SUMIF('[1]Organisation Level'!$P:$P, "<>zIS1", '[1]Organisation Level'!M:M) -> 56193 | D6: =SUMIF('[1]Organisation Level'!$P:$P, "<>zIS1", '[1]Organisation Level'!N:N) -> 2286978 | E6: =SUM(G6:H6)/SUM(G6:L6) -> 0.9447618031 | F6: =SUM(J6:K6)/SUM(G6:L6) -> 0.02496752265 | G6: =SUMIF('[1]Organisation Level'!$P:$P, "<>zIS1", '[1]Organisation Level'!G:G) -> 43541 | H6: =SUMIF('[1]Organisation Level'!$P:$P, "<>zIS1", '[1]Organisation Level'!H:H) -> 9548 | I6: =SUMIF('[1]Organisation Level'!$P:$P, "<>zIS1", '[1]Organisation Level'!I:I) -> 1283 | J6: =SUMIF('[1]Organisation Level'!$P:$P, "<>zIS1", '[1]Organisation Level'!J:J) -> 607 | K6: =SUMIF('[1]Organisation Level'!$P:$P, "<>zIS1", '[1]Organisation Level'!K:K) -> 796 | L6: =SUMIF('[1]Organisation Level'!$P:$P, "<>zIS1", '[1]Organisation Level'!L:L) -> 418
B7: Selection (excluding suppressed data) | C7: =SUBTOTAL(9,C8:C340) -> 78144 | D7: =SUBTOTAL(9,D8:D340) -> 2737735 | E7: =IFERROR((G7+H7)/SUM(G7:L7), "-") -> 0.93493291 | F7: =IFERROR((J7+K7)/SUM(G7:L7), "-") -> 0.03120198709 | G7: =SUBTOTAL(9,G8:G340) -> 59679 | H7: =SUBTOTAL(9,H8:H340) -> 13343 | I7: 2059 | J7: 1020 | K7: 1417 | L7: 586
A8: QE1 | B8: HEALTHIER LANCASHIRE AND SOUTH CUMBRIA | C8: 3083 | D8: 132689 | E8: 0.9532922478 | F8: 0.01719104768 | G8: 2553 | H8: 386 | I8: 51 | J8: 25 | K8: 28 | L8: 40
A9: QF7 | B9: SOUTH YORKSHIRE AND BASSETLAW STP | C9: 774 | D9: 146612 | E9: 0.9444444444 | F9: 0.02325581395 | G9: 664 | H9: 67 | I9: 23 | J9: 7 | K9: 11 | L9: 2
A10: QGH | B10: HEREFORDSHIRE AND WORCESTERSHIRE STP | C10: 233 | D10: 18545 | E10: 0.9313304721 | F10: 0.03433476395 | G10: 193 | H10: 24 | I10: 5 | J10: 2 | K10: 6 | L10: 3
A11: QH8 | B11: MID AND SOUTH ESSEX STP | C11: 10 | D11: 17718 | E11: 1 | F11: 0 | G11: * | H11: * | I11: * | J11: * | K11: * | L11: *
A12: QHL | B12: BIRMINGHAM AND SOLIHULL STP | C12: 1011 | D12: 65792 | E12: 0.9554896142 | F12: 0.02472799209 | G12: 842 | H12: 124 | I12: 14 | J12: 9 | K12: 16 | L12: 6
A13: QHM | B13: CUMBRIA AND NORTH EAST STP | C13: 1986 | D13: 123646 | E13: 0.9642497482 | F13: 0.01711983887 | G13: 1708 | H13: 207 | I13: 32 | J13: 18 | K13: 16 | L13: 5
A14: QJ2 | B14: JOINED UP CARE DERBYSHIRE STP | C14: 1324 | D14: 38975 | E14: 0.8912386707 | F14: 0.04078549849 | G14: 916 | H14: 264 | I14: 78 | J14: 26 | K14: 28 | L14: 12
A15: QJG | B15: SUFFOLK AND NORTH EAST ESSEX ICS | C15: 412 | D15: 12386 | E15: 0.9587378641 | F15: 0.01941747573 | G15: 340 | H15: 55 | I15: 8 | J15: 2 | K15: 6 | L15: 1
A16: QJK | B16: DEVON STP | C16: 378 | D16: 40681 | E16: 0.962962963 | F16: 0.01058201058 | G16: 328 | H16: 36 | I16: 6 | J16: 2 | K16: 2 | L16: 4
A17: QJM | B17: LINCOLNSHIRE STP | C17: 1129 | D17: 25999 | E17: 0.828166519 | F17: 0.09743135518 | G17: 768 | H17: 167 | I17: 68 | J17: 49 | K17: 61 | L17: 16
A18: QK1 | B18: LEICESTER, LEICESTERSHIRE AND RUTLAND STP | C18: 2769 | D18: 90665 | E18: 0.8642109065 | F18: 0.0639219935 | G18: 1887 | H18: 506 | I18: 143 | J18: 64 | K18: 113 | L18: 56
A19: QKK | B19: OUR HEALTHIER SOUTH EAST LONDON STP | C19: 2236 | D19: 50703 | E19: 0.9311270125 | F19: 0.02683363148 | G19: 1591 | H19: 491 | I19: 84 | J19: 25 | K19: 35 | L19: 10
A20: QKS | B20: KENT AND MEDWAY STP | C20: 4385 | D20: 65000 | E20: 0.9787913341 | F20: 0.00661345496 | G20: 3878 | H20: 414 | I20: 56 | J20: 14 | K20: 15 | L20: 8
A21: QM7 | B21: HERTFORDSHIRE AND WEST ESSEX STP | C21: 506 | D21: 47741 | E21: 0.9505928854 | F21: 0.0256916996 | G21: 435 | H21: 46 | I21: 11 | J21: 11 | K21: 2 | L21: 1
A22: QMF | B22: EAST LONDON HEALTH & CARE PARTNERSHIP (STP) | C22: 4161 | D22: 171825 | E22: 0.9579428022 | F22: 0.01682287912 | G22: 1345 | H22: 2641 | I22: 82 | J22: 30 | K22: 40 | L22: 23
A23: QMJ | B23: NORTH LONDON PARTNERS IN HEALTH & CARE (STP) | C23: 1040 | D23: 74881 | E23: 0.9730769231 | F23: 0.009615384615 | G23: 854 | H23: 158 | I23: 17 | J23: 3 | K23: 7 | L23: 1
A24: QMM | B24: NORFOLK AND WAVENEY HEALTH & CARE PARTNERSHIP (STP) | C24: 352 | D24: 23037 | E24: 0.9545454545 | F24: 0.01420454545 | G24: 274 | H24: 62 | I24: 9 | J24: 2 | K24: 3 | L24: 2
A25: QNC | B25: STAFFORDSHIRE & STOKE ON TRENT STP | C25: 643 | D25: 46405 | E25: 0.9595645412 | F25: 0.02488335925 | G25: 467 | H25: 150 | I25: 10 | J25: 1 | K25: 15 | L25: 0
A26: QNQ | B26: FRIMLEY HEALTH & CARE (STP) | C26: 1744 | D26: 31114 | E26: 0.932912844 | F26: 0.03612385321 | G26: 1405 | H26: 222 | I26: 41 | J26: 33 | K26: 30 | L26: 13
A27: QNX | B27: SUSSEX HEALTH AND CARE PARTNERSHIP | C27: 1312 | D27: 93560 | E27: 0.974847561 | F27: 0.009146341463 | G27: 1137 | H27: 142 | I27: 20 | J27: 2 | K27: 10 | L27: 1
A28: QOC | B28: SHROPSHIRE AND TELFORD AND WREKIN STP | C28: 407 | D28: 23343 | E28: 0.9557739558 | F28: 0.01228501229 | G28: 315 | H28: 74 | I28: 8 | J28: 5 | K28: 0 | L28: 5
A29: QOP | B29: GREATER MANCHESTER HEALTH & SOCIAL CARE PARTNERSHIP | C29: 2071 | D29: 76387 | E29: 0.9521970063 | F29: 0.01979719942 | G29: 1737 | H29: 235 | I29: 36 | J29: 19 | K29: 22 | L29: 22
A30: QOQ | B30: HUMBER, COAST AND VALE STP | C30: 144 | D30: 21270 | E30: 0.9375 | F30: 0.03472222222 | G30: 108 | H30: 27 | I30: 2 | J30: 3 | K30: 2 | L30: 2
A31: QPM | B31: NORTHAMPTONSHIRE STP | C31: 355 | D31: 39997 | E31: 0.938028169 | F31: 0.03098591549 | G31: 294 | H31: 39 | I31: 6 | J31: 0 | K31: 11 | L31: 5
A32: QR1 | B32: GLOUCESTERSHIRE STP | C32: 1367 | D32: 16589 | E32: 0.9626920263 | F32: 0.01755669349 | G32: 1163 | H32: 153 | I32: 23 | J32: 11 | K32: 13 | L32: 4
A33: QRL | B33: HAMPSHIRE AND THE ISLE OF WIGHT STP | C33: 1863 | D33: 85808 | E33: 0.9479334407 | F33: 0.02683843264 | G33: 1517 | H33: 249 | I33: 34 | J33: 25 | K33: 25 | L33: 13
A34: QRV | B34: NORTH WEST LONDON HEALTH & CARE PARTNERSHIP (STP) | C34: 2433 | D34: 98149 | E34: 0.9675297986 | F34: 0.01233045623 | G34: 2104 | H34: 250 | I34: 46 | J34: 14 | K34: 16 | L34: 3
A35: QSL | B35: SOMERSET STP | C35: 30 | D35: 22341 | E35: 1 | F35: 0 | G35: * | H35: * | I35: * | J35: * | K35: * | L35: *
A36: QT1 | B36: NOTTINGHAM AND NOTTINGHAMSHIRE HEALTH AND CARE STP | C36: 81 | D36: 40538 | E36: 0.9135802469 | F36: 0.03703703704 | G36: 62 | H36: 12 | I36: 4 | J36: 2 | K36: 1 | L36: 0
A37: QT6 | B37: CORNWALL AND THE ISLES OF SCILLY HEALTH & SOCIAL CARE PARTNERSHIP (STP) | C37: 1109 | D37: 31353 | E37: 0.9413886384 | F37: 0.03606853021 | G37: 905 | H37: 139 | I37: 23 | J37: 24 | K37: 16 | L37: 2
A38: QU9 | B38: BUCKINGHAMSHIRE, OXFORDSHIRE AND BERKSHIRE WEST STP | C38: 1515 | D38: 37888 | E38: 0.9188118812 | F38: 0.03300330033 | G38: 1185 | H38: 207 | I38: 41 | J38: 18 | K38: 32 | L38: 32
A39: QUA | B39: THE BLACK COUNTRY AND WEST BIRMINGHAM STP | C39: 1232 | D39: 29519 | E39: 0.9147727273 | F39: 0.02353896104 | G39: 975 | H39: 152 | I39: 39 | J39: 15 | K39: 14 | L39: 37
A40: QUE | B40: CAMBRIDGESHIRE AND PETERBOROUGH STP | C40: 2418 | D40: 80208 | E40: 0.9582299421 | F40: 0.0264681555 | G40: 2011 | H40: 306 | I40: 34 | J40: 35 | K40: 29 | L40: 3
A41: QVV | B41: DORSET STP | C41: 1976 | D41: 42165 | E41: 0.9453441296 | F41: 0.02530364372 | G41: 1674 | H41: 194 | I41: 40 | J41: 17 | K41: 33 | L41: 18
A42: QWE | B42: SOUTH WEST LONDON HEALTH & CARE PARTNERSHIP (STP) | C42: 1435 | D42: 62146 | E42: 0.9707317073 | F42: 0.01114982578 | G42: 1092 | H42: 301 | I42: 19 | J42: 7 | K42: 9 | L42: 7
A43: QWO | B43: WEST YORKSHIRE AND HARROGATE HEALTH & CARE PARTNERSHIP (STP) | C43: 3428 | D43: 96123 | E43: 0.9696616103 | F43: 0.01283547258 | G43: 2930 | H43: 394 | I43: 44 | J43: 21 | K43: 23 | L43: 16
A44: QWU | B44: COVENTRY AND WARWICKSHIRE STP | C44: 223 | D44: 8479 | E44: 0.9417040359 | F44: 0.04932735426 | G44: 184 | H44: 26 | I44: 1 | J44: 0 | K44: 11 | L44: 1
A45: QXU | B45: SURREY HEARTLANDS HEALTH & CARE PARTNERSHIP (STP) | C45: 83 | D45: 4302 | E45: 0.9879518072 | F45: 0.01204819277 | G45: 76 | H45: 6 | I45: 0 | J45: 1 | K45: 0 | L45: 0
A46: QYG | B46: CHESHIRE AND MERSEYSIDE STP | C46: 4535 | D46: 152399 | E46: 0.9274531422 | F46: 0.03528114664 | G46: 3587 | H46: 619 | I46: 125 | J46: 65 | K46: 95 | L46: 44
A47: IS1 | B47: Independent Sector Providers | C47: 21951 | D47: 450757 | E47: 0.90989021 | F47: 0.04710491549 | G47: 16175 | H47: 3798 | I47: 776 | J47: 413 | K47: 621 | L47: 168

Sheet Trusts
A3: STP Code | B3: Trust Code | C3: Trust Name | D3: Total Responses | E3: Total Eligible | F3: Percentage Positive | G3: Percentage Negative | H3: Breakdown of Responses | N3: Mode of Collection
H4: Very Good | I4: Good | J4: Neither Good nor Poor | K4: Poor | L4: Very Poor | M4: Don't Know | N4: Mode SMS | O4: Mode Electronic Discharge | P4: Mode Paper Home | Q4: Mode Telephone | R4: Mode Online | S4: Mode Other
C5: England (including Independent Sector Providers) | D5: 78144 | E5: 2737735 | F5: 0.9349662162 | G5: 0.03118601556 | H5: 59716 | I5: 13346 | J5: 2059 | K5: 1020 | L5: 1417 | M5: 586 | N5: 22962 | O5: 4521 | P5: 21620 | Q5: 3925 | R5: 22690 | S5: 2426
C6: England (excluding Independent Sector Providers) | D6: 56193 | E6: 2286978 | F6: 0.9447618031 | G6: 0.02496752265 | H6: 43541 | I6: 9548 | J6: 1283 | K6: 607 | L6: 796 | M6: 418 | N6: 16102 | O6: 4420 | P6: 15894 | Q6: 3611 | R6: 13741 | S6: 2425
C7: Selection (excluding suppressed data) | D7: =SUBTOTAL(9,D8:D294) -> 78144 | E7: =SUBTOTAL(9,E8:E294) -> 2737735 | F7: =IFERROR((H7+I7)/SUM(H7:M7), "-") -> 0.9357588276 | G7: =IFERROR((K7+L7)/SUM(H7:M7), "-") -> 0.03099630032 | H7: =SUBTOTAL(9,H8:H294) -> 58534 | I7: 13045 | J7: 1975 | K7: 991 | L7: 1380 | M7: 568 | N7: 21367 | O7: 4521 | P7: 21618 | Q7: 3925 | R7: 22636 | S7: 2426
A8: QE1 | B8: RXL | C8: BLACKPOOL TEACHING HOSPITALS NHS FOUNDATION TRUST | D8: 916 | E8: 22653 | F8: 0.9585152838 | G8: 0.02183406114 | H8: 781 | I8: 97 | J8: 16 | K8: 12 | L8: 8 | M8: 2 | N8: 131 | O8: 0 | P8: 478 | Q8: 0 | R8: 307 | S8: 0
A9: QE1 | B9: RXR | C9: EAST LANCASHIRE HOSPITALS NHS TRUST | D9: 664 | E9: 49244 | F9: 0.9126506024 | G9: 0.03162650602 | H9: 486 | I9: 120 | J9: 16 | K9: 8 | L9: 13 | M9: 21 | N9: 402 | O9: 0 | P9: 193 | Q9: 21 | R9: 48 | S9: 0
A10: QE1 | B10: RW5 | C10: LANCASHIRE & SOUTH CUMBRIA NHS FOUNDATION TRUST | D10: 752 | E10: 55642 | F10: 0.9840425532 | G10: 0.003989361702 | H10: 684 | I10: 56 | J10: 8 | K10: 2 | L10: 1 | M10: 1 | N10: 0 | O10: 0 | P10: 0 | Q10: 0 | R10: 752 | S10: 0
A11: QE1 | B11: RTX | C11: UNIVERSITY HOSPITALS OF MORECAMBE BAY NHS FOUNDATION TRUST | D11: 751 | E11: 5150 | F11: 0.9520639148 | G11: 0.0119840213 | H11: 602 | I11: 113 | J11: 11 | K11: 3 | L11: 6 | M11: 16 | N11: 504 | O11: 0 | P11: 0 | Q11: 247 | R11: 0 | S11: 0
A12: QF7 | B12: RXE | C12: ROTHERHAM DONCASTER AND SOUTH HUMBER NHS FOUNDATION TRUST | D12: 262 | E12: 113185 | F12: 0.9923664122 | G12: 0.007633587786 | H12: 251 | I12: 9 | J12: 0 | K12: 0 | L12: 2 | M12: 0 | N12: 0 | O12: 150 | P12: 112 | Q12: 0 | R12: 0 | S12: 0
A13: QF7 | B13: RCU | C13: SHEFFIELD CHILDREN'S NHS FOUNDATION TRUST | D13: 112 | E13: 6718 | F13: 0.9642857143 | G13: 0.008928571429 | H13: 102 | I13: 6 | J13: 3 | K13: 1 | L13: 0 | M13: 0 | N13: 0 | O13: 0 | P13: 0 | Q13: 0 | R13: 112 | S13: 0
A14: QF7 | B14: RHQ | C14: SHEFFIELD TEACHING HOSPITALS NHS FOUNDATION TRUST | D14: 266 | E14: 1425 | F14: 0.9022556391 | G14: 0.04511278195 | H14: 197 | I14: 43 | J14: 12 | K14: 5 | L14: 7 | M14: 2 | N14: 128 | O14: 0 | P14: 38 | Q14: 0 | R14: 87 | S14: 13
A15: QF7 | B15: RFR | C15: THE ROTHERHAM NHS FOUNDATION TRUST | D15: 134 | E15: 25284 | F15: 0.9179104478 | G15: 0.0223880597 | H15: 114 | I15: 9 | J15: 8 | K15: 1 | L15: 2 | M15: 0 | N15: 0 | O15: 0 | P15: 42 | Q15: 0 | R15: 92 | S15: 0
A16: QGH | B16: R1A | C16: HEREFORDSHIRE AND WORCESTERSHIRE HEALTH AND CARE NHS TRUST | D16: 230 | E16: 13217 | F16: 0.9304347826 | G16: 0.0347826087 | H16: * | I16: * | J16: * | K16: * | L16: * | M16: * | N16: * | O16: * | P16: * | Q16: * | R16: * | S16: *
A17: QGH | B17: RLQ | C17: WYE VALLEY NHS TRUST | D17: 3 | E17: 5328 | F17: * | G17: * | H17: * | I17: * | J17: * | K17: * | L17: * | M17: * | N17: * | O17: * | P17: * | Q17: * | R17: * | S17: *
A18: QH8 | B18: R1L | C18: ESSEX PARTNERSHIP UNIVERSITY NHS FOUNDATION TRUST | D18: 10 | E18: 17718 | F18: 1 | G18: 0 | H18: * | I18: * | J18: * | K18: * | L18: * | M18: * | N18: * | O18: * | P18: * | Q18: * | R18: * | S18: *
A19: QHL | B19: RYW | C19: BIRMINGHAM COMMUNITY HEALTHCARE NHS FOUNDATION TRUST | D19: 985 | E19: 60389 | F19: 0.9543147208 | G19: 0.02538071066 | H19: 817 | I19: 123 | J19: 14 | K19: 9 | L19: 16 | M19: 6 | N19: 1 | O19: 0 | P19: 612 | Q19: 0 | R19: 372 | S19: 0
A20: QHL | B20: RRK | C20: UNIVERSITY HOSPITALS BIRMINGHAM NHS FOUNDATION TRUST | D20: 26 | E20: 5403 | F20: 1 | G20: 0 | H20: 25 | I20: 1 | J20: 0 | K20: 0 | L20: 0 | M20: 0 | N20: 0 | O20: 0 | P20: 26 | Q20: 0 | R20: 0 | S20: 0
A21: QHM | B21: RXP | C21: COUNTY DURHAM AND DARLINGTON NHS FOUNDATION TRUST | D21: 0 | E21: 659 | F21: NA | G21: NA | H21: 0 | I21: 0 | J21: 0 | K21: 0 | L21: 0 | M21: 0 | N21: 0 | O21: 0 | P21: 0 | Q21: 0 | R21: 0 | S21: 0
A22: QHM | B22: RR7 | C22: GATESHEAD HEALTH NHS FOUNDATION TRUST | D22: 0 | E22: 42878 | F22: NA | G22: NA | H22: 0 | I22: 0 | J22: 0 | K22: 0 | L22: 0 | M22: 0 | N22: 0 | O22: 0 | P22: 0 | Q22: 0 | R22: 0 | S22: 0
A23: QHM | B23: RNN | C23: NORTH CUMBRIA INTEGRATED CARE NHS FOUNDATION TRUST | D23: 664 | E23: 13959 | F23: 0.9864457831 | G23: 0.003012048193 | H23: 603 | I23: 52 | J23: 7 | K23: 1 | L23: 1 | M23: 0 | N23: 174 | O23: 0 | P23: 392 | Q23: 0 | R23: 98 | S23: 0
A24: QHM | B24: RVW | C24: NORTH TEES AND HARTLEPOOL NHS FOUNDATION TRUST | D24: 194 | E24: 11580 | F24: 0.9742268041 | G24: 0.005154639175 | H24: 170 | I24: 19 | J24: 2 | K24: 1 | L24: 0 | M24: 2 | N24: 136 | O24: 0 | P24: 58 | Q24: 0 | R24: 0 | S24: 0
A25: QHM | B25: RTF | C25: NORTHUMBRIA HEALTHCARE NHS FOUNDATION TRUST | D25: 608 | E25: 34814 | F25: 0.9128289474 | G25: 0.05098684211 | H25: 470 | I25: 85 | J25: 19 | K25: 16 | L25: 15 | M25: 3 | N25: 608 | O25: 0 | P25: 0 | Q25: 0 | R25: 0 | S25: 0
A26: QHM | B26: RTR | C26: SOUTH TEES HOSPITALS NHS FOUNDATION TRUST | D26: 262 | E26: 5502 | F26: 0.9885496183 | G26: 0 | H26: 230 | I26: 29 | J26: 3 | K26: 0 | L26: 0 | M26: 0 | N26: 46 | O26: 157 | P26: 52 | Q26: 0 | R26: 7 | S26: 0
A27: QHM | B27: R0B | C27: SOUTH TYNESIDE AND SUNDERLAND NHS FOUNDATION TRUST | D27: 200 | E27: 11313 | F27: 1 | G27: 0 | H27: 190 | I27: 10 | J27: 0 | K27: 0 | L27: 0 | M27: 0 | N27: 0 | O27: 0 | P27: 193 | Q27: 0 | R27: 7 | S27: 0
A28: QHM | B28: RTD | C28: THE NEWCASTLE UPON TYNE HOSPITALS NHS FOUNDATION TRUST | D28: 58 | E28: 2941 | F28: 0.9827586207 | G28: 0 | H28: 45 | I28: 12 | J28: 1 | K28: 0 | L28: 0 | M28: 0 | N28: 0 | O28: 0 | P28: 0 | Q28: 0 | R28: 58 | S28: 0
A29: QJ2 | B29: RY8 | C29: DERBYSHIRE COMMUNITY HEALTH SERVICES NHS FOUNDATION TRUST | D29: 1321 | E29: 32502 | F29: 0.890991673 | G29: 0.04087812263 | H29: * | I29: * | J29: * | K29: * | L29: * | M29: * | N29: * | O29: * | P29: * | Q29: * | R29: * | S29: *
A30: QJ2 | B30: RXM | C30: DERBYSHIRE HEALTHCARE NHS FOUNDATION TRUST | D30: 3 | E30: 6473 | F30: * | G30: * | H30: * | I30: * | J30: * | K30: * | L30: * | M30: * | N30: * | O30: * | P30: * | Q30: * | R30: * | S30: *
A31: QJG | B31: RDE | C31: EAST SUFFOLK AND NORTH ESSEX NHS FOUNDATION TRUST | D31: 356 | E31: 10640 | F31: 0.9578651685 | G31: 0.02247191011 | H31: 301 | I31: 40 | J31: 6 | K31: 2 | L31: 6 | M31: 1 | N31: 0 | O31: 0 | P31: 4 | Q31: 0 | R31: 352 | S31: 0
A32: QJG | B32: RGR | C32: WEST SUFFOLK NHS FOUNDATION TRUST | D32: 56 | E32: 1746 | F32: 0.9642857143 | G32: 0 | H32: 39 | I32: 15 | J32: 2 | K32: 0 | L32: 0 | M32: 0 | N32: 0 | O32: 38 | P32: 18 | Q32: 0 | R32: 0 | S32: 0
A33: QJK | B33: RBZ | C33: NORTHERN DEVON HEALTHCARE NHS TRUST | D33: 119 | E33: 4475 | F33: 0.974789916 | G33: 0.008403361345 | H33: 108 | I33: 8 | J33: 2 | K33: 1 | L33: 0 | M33: 0 | N33: 0 | O33: 0 | P33: 82 | Q33: 0 | R33: 37 | S33: 0
A34: QJK | B34: RH8 | C34: ROYAL DEVON AND EXETER NHS FOUNDATION TRUST | D34: 62 | E34: 13212 | F34: 0.9677419355 | G34: 0 | H34: 60 | I34: 0 | J34: 1 | K34: 0 | L34: 0 | M34: 1 | N34: 0 | O34: 0 | P34: 0 | Q34: 0 | R34: 62 | S34: 0
A35: QJK | B35: RA9 | C35: TORBAY AND SOUTH DEVON NHS FOUNDATION TRUST | D35: 147 | E35: 22770 | F35: 0.9659863946 | G35: 0.02040816327 | H35: 124 | I35: 18 | J35: 2 | K35: 1 | L35: 2 | M35: 0 | N35: 0 | O35: 0 | P35: 147 | Q35: 0 | R35: 0 | S35: 0
A36: QJK | B36: RK9 | C36: UNIVERSITY HOSPITALS PLYMOUTH NHS TRUST | D36: 50 | E36: 224 | F36: 0.92 | G36: 0 | H36: 36 | I36: 10 | J36: 1 | K36: 0 | L36: 0 | M36: 3 | N36: 0 | O36: 0 | P36: 50 | Q36: 0 | R36: 0 | S36: 0
A37: QJM | B37: RY5 | C37: LINCOLNSHIRE COMMUNITY HEALTH SERVICES NHS TRUST | D37: 1129 | E37: 25999 | F37: 0.828166519 | G37: 0.09743135518 | H37: 768 | I37: 167 | J37: 68 | K37: 49 | L37: 61 | M37: 16 | N37: 812 | O37: 300 | P37: 17 | Q37: 0 | R37: 0 | S37: 0
A38: QK1 | B38: RT5 | C38: LEICESTERSHIRE PARTNERSHIP NHS TRUST | D38: 2769 | E38: 90665 | F38: 0.8642109065 | G38: 0.0639219935 | H38: 1887 | I38: 506 | J38: 143 | K38: 64 | L38: 113 | M38: 56 | N38: 2195 | O38: 144 | P38: 0 | Q38: 370 | R38: 60 | S38: 0
A39: QKK | B39: RJ1 | C39: GUY'S AND ST THOMAS' NHS FOUNDATION TRUST | D39: 334 | E39: 5838 | F39: 0.9580838323 | G39: 0.02095808383 | H39: 249 | I39: 71 | J39: 6 | K39: 4 | L39: 3 | M39: 1 | N39: 0 | O39: 0 | P39: 195 | Q39: 19 | R39: 120 | S39: 0
A40: QKK | B40: RJ2 | C40: LEWISHAM AND GREENWICH NHS TRUST | D40: 782 | E40: 26326 | F40: 0.9731457801 | G40: 0.01406649616 | H40: 568 | I40: 193 | J40: 10 | K40: 5 | L40: 6 | M40: 0 | N40: 3 | O40: 0 | P40: 20 | Q40: 0 | R40: 759 | S40: 0
A41: QKK | B41: RPG | C41: OXLEAS NHS FOUNDATION TRUST | D41: 1120 | E41: 18539 | F41: 0.89375 | G41: 0.0375 | H41: 774 | I41: 227 | J41: 68 | K41: 16 | L41: 26 | M41: 9 | N41: 669 | O41: 185 | P41: 248 | Q41: 0 | R41: 5 | S41: 13
A42: QKS | B42: RYY | C42: KENT COMMUNITY HEALTH NHS FOUNDATION TRUST | D42: 4385 | E42: 65000 | F42: 0.9787913341 | G42: 0.00661345496 | H42: 3878 | I42: 414 | J42: 56 | K42: 14 | L42: 15 | M42: 8 | N42: 0 | O42: 231 | P42: 2192 | Q42: 181 | R42: 1781 | S42: 0
A43: QM7 | B43: RY4 | C43: HERTFORDSHIRE COMMUNITY NHS TRUST | D43: 506 | E43: 47741 | F43: 0.9505928854 | G43: 0.0256916996 | H43: 435 | I43: 46 | J43: 11 | K43: 11 | L43: 2 | M43: 1 | N43: 194 | O43: 0 | P43: 208 | Q43: 0 | R43: 104 | S43: 0
A44: QMF | B44: R1H | C44: BARTS HEALTH NHS TRUST | D44: 0 | E44: 9922 | F44: NA | G44: NA | H44: 0 | I44: 0 | J44: 0 | K44: 0 | L44: 0 | M44: 0 | N44: 0 | O44: 0 | P44: 0 | Q44: 0 | R44: 0 | S44: 0
A45: QMF | B45: RWK | C45: EAST LONDON NHS FOUNDATION TRUST | D45: 3006 | E45: 11150 | F45: 0.9913506321 | G45: 0.002661343979 | H45: 550 | I45: 2430 | J45: 16 | K45: 3 | L45: 5 | M45: 2 | N45: 58 | O45: 84 | P45: 0 | Q45: 0 | R45: 537 | S45: 2327
A46: QMF | B46: RQX | C46: HOMERTON UNIVERSITY HOSPITAL NHS FOUNDATION TRUST | D46: 110 | E46: 16476 | F46: 0.9636363636 | G46: 0.01818181818 | H46: 90 | I46: 16 | J46: 2 | K46: 0 | L46: 2 | M46: 0 | N46: 0 | O46: 7 | P46: 5 | Q46: 0 | R46: 98 | S46: 0
A47: QMF | B47: RAT | C47: NORTH EAST LONDON NHS FOUNDATION TRUST | D47: 1045 | E47: 134277 | F47: 0.8612440191 | G47: 0.05741626794 | H47: 705 | I47: 195 | J47: 64 | K47: 27 | L47: 33 | M47: 21 | N47: 0 | O47: 0 | P47: 0 | Q47: 0 | R47: 1045 | S47: 0
A48: QMJ | B48: RRP | C48: BARNET, ENFIELD AND HARINGEY MENTAL HEALTH NHS TRUST | D48: 124 | E48: 9949 | F48: 0.9435483871 | G48: 0.008064516129 | H48: 84 | I48: 33 | J48: 6 | K48: 1 | L48: 0 | M48: 0 | N48: 0 | O48: 0 | P48: 0 | Q48: 0 | R48: 124 | S48: 0
A49: QMJ | B49: RV3 | C49: CENTRAL AND NORTH WEST LONDON NHS FOUNDATION TRUST | D49: 305 | E49: 39901 | F49: 0.9704918033 | G49: 0.006557377049 | H49: 227 | I49: 69 | J49: 6 | K49: 1 | L49: 1 | M49: 1 | N49: 0 | O49: 0 | P49: 174 | Q49: 0 | R49: 131 | S49: 0
A50: QMJ | B50: RKE | C50: WHITTINGTON HEALTH NHS TRUST | D50: 611 | E50: 25031 | F50: 0.9803600655 | G50: 0.01145662848 | H50: 543 | I50: 56 | J50: 5 | K50: 1 | L50: 6 | M50: 0 | N50: 2 | O50: 570 | P50: 8 | Q50: 6 | R50: 25 | S50: 0
A51: QMM | B51: RY3 | C51: NORFOLK COMMUNITY HEALTH AND CARE NHS TRUST | D51: 352 | E51: 23037 | F51: 0.9545454545 | G51: 0.01420454545 | H51: 274 | I51: 62 | J51: 9 | K51: 2 | L51: 3 | M51: 2 | N51: 0 | O51: 50 | P51: 153 | Q51: 0 | R51: 149 | S51: 0
A52: QNC | B52: RRE | C52: MIDLANDS PARTNERSHIP NHS FOUNDATION TRUST | D52: 643 | E52: 46405 | F52: 0.9595645412 | G52: 0.02488335925 | H52: 467 | I52: 150 | J52: 10 | K52: 1 | L52: 15 | M52: 0 | N52: 0 | O52: 82 | P52: 0 | Q52: 0 | R52: 561 | S52: 0
A53: QNQ | B53: RWX | C53: BERKSHIRE HEALTHCARE NHS FOUNDATION TRUST | D53: 1680 | E53: 30875 | F53: 0.931547619 | G53: 0.0375 | H53: 1348 | I53: 217 | J53: 39 | K53: 33 | L53: 30 | M53: 13 | N53: 1137 | O53: 20 | P53: 175 | Q53: 0 | R53: 348 | S53: 0
A54: QNQ | B54: RDU | C54: FRIMLEY HEALTH NHS FOUNDATION TRUST | D54: 64 | E54: 239 | F54: 0.96875 | G54: 0 | H54: 57 | I54: 5 | J54: 2 | K54: 0 | L54: 0 | M54: 0 | N54: 0 | O54: 0 | P54: 64 | Q54: 0 | R54: 0 | S54: 0
A55: QNX | B55: RXC | C55: EAST SUSSEX HEALTHCARE NHS TRUST | D55: 282 | E55: 45650 | F55: 0.9929078014 | G55: 0 | H55: 255 | I55: 25 | J55: 1 | K55: 0 | L55: 0 | M55: 1 | N55: 0 | O55: 10 | P55: 266 | Q55: 0 | R55: 6 | S55: 0
A56: QNX | B56: RDR | C56: SUSSEX COMMUNITY NHS FOUNDATION TRUST | D56: 1030 | E56: 47910 | F56: 0.9699029126 | G56: 0.01165048544 | H56: 882 | I56: 117 | J56: 19 | K56: 2 | L56: 10 | M56: 0 | N56: 0 | O56: 0 | P56: 1030 | Q56: 0 | R56: 0 | S56: 0
A57: QOC | B57: R1D | C57: SHROPSHIRE COMMUNITY HEALTH NHS TRUST | D57: 407 | E57: 23343 | F57: 0.9557739558 | G57: 0.01228501229 | H57: 315 | I57: 74 | J57: 8 | K57: 5 | L57: 0 | M57: 5 | N57: 1 | O57: 280 | P57: 91 | Q57: 0 | R57: 35 | S57: 0
A58: QOP | B58: RMC | C58: BOLTON NHS FOUNDATION TRUST | D58: 537 | E58: 13207 | F58: 0.990689013 | G58: 0 | H58: 494 | I58: 38 | J58: 4 | K58: 0 | L58: 0 | M58: 1 | N58: 0 | O58: 177 | P58: 360 | Q58: 0 | R58: 0 | S58: 0
A59: QOP | B59: R0A | C59: MANCHESTER UNIVERSITY NHS FOUNDATION TRUST | D59: 473 | E59: 43186 | F59: 0.9577167019 | G59: 0.01902748414 | H59: 383 | I59: 70 | J59: 7 | K59: 2 | L59: 7 | M59: 4 | N59: 164 | O59: 18 | P59: 147 | Q59: 144 | R59: 0 | S59: 0
A60: QOP | B60: RWJ | C60: STOCKPORT NHS FOUNDATION TRUST | D60: 546 | E60: 16593 | F60: 0.9468864469 | G60: 0.01831501832 | H60: 461 | I60: 56 | J60: 16 | K60: 4 | L60: 6 | M60: 3 | N60: 435 | O60: 0 | P60: 4 | Q60: 59 | R60: 0 | S60: 48
A61: QOP | B61: RRF | C61: WRIGHTINGTON, WIGAN AND LEIGH NHS FOUNDATION TRUST | D61: 515 | E61: 3401 | F61: 0.9126213592 | G61: 0.0427184466 | H61: 399 | I61: 71 | J61: 9 | K61: 13 | L61: 9 | M61: 14 | N61: 398 | O61: 0 | P61: 14 | Q61: 103 | R61: 0 | S61: 0
A62: QOQ | B62: RCD | C62: HARROGATE AND DISTRICT NHS FOUNDATION TRUST | D62: 74 | E62: 6933 | F62: 0.9054054054 | G62: 0.05405405405 | H62: 49 | I62: 18 | J62: 2 | K62: 2 | L62: 2 | M62: 1 | N62: 0 | O62: 0 | P62: 0 | Q62: 74 | R62: 0 | S62: 0
A63: QOQ | B63: RV9 | C63: HUMBER TEACHING NHS FOUNDATION TRUST | D63: 47 | E63: 10210 | F63: 0.9574468085 | G63: 0.02127659574 | H63: 40 | I63: 5 | J63: 0 | K63: 1 | L63: 0 | M63: 1 | N63: 0 | O63: 0 | P63: 47 | Q63: 0 | R63: 0 | S63: 0
A64: QOQ | B64: RCB | C64: YORK AND SCARBOROUGH TEACHING HOSPITALS NHS FOUNDATION TRUST | D64: 23 | E64: 4127 | F64: 1 | G64: 0 | H64: 19 | I64: 4 | J64: 0 | K64: 0 | L64: 0 | M64: 0 | N64: 0 | O64: 0 | P64: 23 | Q64: 0 | R64: 0 | S64: 0
A65: QPM | B65: RP1 | C65: NORTHAMPTONSHIRE HEALTHCARE NHS FOUNDATION TRUST | D65: 355 | E65: 39997 | F65: 0.938028169 | G65: 0.03098591549 | H65: 294 | I65: 39 | J65: 6 | K65: 0 | L65: 11 | M65: 5 | N65: 0 | O65: 38 | P65: 227 | Q65: 0 | R65: 90 | S65: 0
A66: QR1 | B66: RTQ | C66: GLOUCESTERSHIRE HEALTH AND CARE NHS FOUNDATION TRUST | D66: 1367 | E66: 16589 | F66: 0.9626920263 | G66: 0.01755669349 | H66: 1163 | I66: 153 | J66: 23 | K66: 11 | L66: 13 | M66: 4 | N66: 0 | O66: 0 | P66: 0 | Q66: 0 | R66: 1367 | S66: 0
A67: QRL | B67: R1F | C67: ISLE OF WIGHT NHS TRUST | D67: 72 | E67: 7365 | F67: 1 | G67: 0 | H67: 60 | I67: 12 | J67: 0 | K67: 0 | L67: 0 | M67: 0 | N67: 0 | O67: 0 | P67: 72 | Q67: 0 | R67: 0 | S67: 0
A68: QRL | B68: R1C | C68: SOLENT NHS TRUST | D68: 1725 | E68: 41935 | F68: 0.9443478261 | G68: 0.02898550725 | H68: 1396 | I68: 233 | J68: 34 | K68: 25 | L68: 25 | M68: 12 | N68: 1194 | O68: 0 | P68: 448 | Q68: 0 | R68: 83 | S68: 0
A69: QRL | B69: RW1 | C69: SOUTHERN HEALTH NHS FOUNDATION TRUST | D69: 66 | E69: 36508 | F69: 0.9848484848 | G69: 0 | H69: 61 | I69: 4 | J69: 0 | K69: 0 | L69: 0 | M69: 1 | N69: 0 | O69: 0 | P69: 9 | Q69: 0 | R69: 57 | S69: 0
A70: QRV | B70: RYX | C70: CENTRAL LONDON COMMUNITY HEALTHCARE NHS TRUST | D70: 1811 | E70: 82311 | F70: 0.9685256764 | G70: 0.01104362231 | H70: 1559 | I70: 195 | J70: 35 | K70: 12 | L70: 8 | M70: 2 | N70: 0 | O70: 75 | P70: 669 | Q70: 1067 | R70: 0 | S70: 0
A71: QRV | B71: RQM | C71: CHELSEA AND WESTMINSTER HOSPITAL NHS FOUNDATION TRUST | D71: 291 | E71: 3302 | F71: 0.9621993127 | G71: 0.01030927835 | H71: 261 | I71: 19 | J71: 7 | K71: 1 | L71: 2 | M71: 1 | N71: 274 | O71: 0 | P71: 0 | Q71: 0 | R71: 17 | S71: 0
A72: QRV | B72: R1K | C72: LONDON NORTH WEST UNIVERSITY HEALTHCARE NHS TRUST | D72: 183 | E72: 722 | F72: 0.9726775956 | G72: 0.0218579235 | H72: 171 | I72: 7 | J72: 1 | K72: 0 | L72: 4 | M72: 0 | N72: 0 | O72: 0 | P72: 183 | Q72: 0 | R72: 0 | S72: 0
A73: QRV | B73: RKL | C73: WEST LONDON NHS TRUST | D73: 148 | E73: 11814 | F73: 0.9594594595 | G73: 0.02027027027 | H73: 113 | I73: 29 | J73: 3 | K73: 1 | L73: 2 | M73: 0 | N73: 0 | O73: 0 | P73: 131 | Q73: 0 | R73: 17 | S73: 0
A74: QSL | B74: RH5 | C74: SOMERSET NHS FOUNDATION TRUST | D74: 30 | E74: 22341 | F74: 1 | G74: 0 | H74: * | I74: * | J74: * | K74: * | L74: * | M74: * | N74: * | O74: * | P74: * | Q74: * | R74: * | S74: *
A75: QT1 | B75: RX1 | C75: NOTTINGHAM UNIVERSITY HOSPITALS NHS TRUST | D75: 0 | E75: 832 | F75: NA | G75: NA | H75: 0 | I75: 0 | J75: 0 | K75: 0 | L75: 0 | M75: 0 | N75: 0 | O75: 0 | P75: 0 | Q75: 0 | R75: 0 | S75: 0
A76: QT1 | B76: RHA | C76: NOTTINGHAMSHIRE HEALTHCARE NHS FOUNDATION TRUST | D76: 81 | E76: 39706 | F76: 0.9135802469 | G76: 0.03703703704 | H76: 62 | I76: 12 | J76: 4 | K76: 2 | L76: 1 | M76: 0 | N76: 0 | O76: 0 | P76: 81 | Q76: 0 | R76: 0 | S76: 0
A77: QT6 | B77: RJ8 | C77: CORNWALL PARTNERSHIP NHS FOUNDATION TRUST | D77: 1109 | E77: 31353 | F77: 0.9413886384 | G77: 0.03606853021 | H77: 905 | I77: 139 | J77: 23 | K77: 24 | L77: 16 | M77: 2 | N77: 868 | O77: 63 | P77: 132 | Q77: 0 | R77: 46 | S77: 0
A78: QU9 | B78: RXQ | C78: BUCKINGHAMSHIRE HEALTHCARE NHS TRUST | D78: 774 | E78: 5972 | F78: 0.8953488372 | G78: 0.0322997416 | H78: 564 | I78: 129 | J78: 35 | K78: 13 | L78: 12 | M78: 21 | N78: 479 | O78: 0 | P78: 0 | Q78: 295 | R78: 0 | S78: 0
A79: QU9 | B79: RNU | C79: OXFORD HEALTH NHS FOUNDATION TRUST | D79: 741 | E79: 31916 | F79: 0.9433198381 | G79: 0.03373819163 | H79: 621 | I79: 78 | J79: 6 | K79: 5 | L79: 20 | M79: 11 | N79: 0 | O79: 220 | P79: 473 | Q79: 0 | R79: 48 | S79: 0
A80: QUA | B80: TAJ | C80: BLACK COUNTRY HEALTHCARE NHS FOUNDATION TRUST | D80: 23 | E80: 4265 | F80: 1 | G80: 0 | H80: 22 | I80: 1 | J80: 0 | K80: 0 | L80: 0 | M80: 0 | N80: 0 | O80: 0 | P80: 0 | Q80: 0 | R80: 0 | S80: 23
A81: QUA | B81: RNA | C81: THE DUDLEY GROUP NHS FOUNDATION TRUST | D81: 333 | E81: 10517 | F81: 0.8648648649 | G81: 0.02402402402 | H81: 267 | I81: 21 | J81: 11 | K81: 2 | L81: 6 | M81: 26 | N81: 278 | O81: 0 | P81: 50 | Q81: 0 | R81: 5 | S81: 0
A82: QUA | B82: RL4 | C82: THE ROYAL WOLVERHAMPTON NHS TRUST | D82: 386 | E82: 5789 | F82: 0.9222797927 | G82: 0.02590673575 | H82: 293 | I82: 63 | J82: 9 | K82: 4 | L82: 6 | M82: 11 | N82: 51 | O82: 0 | P82: 0 | Q82: 334 | R82: 1 | S82: 0
A83: QUA | B83: RBK | C83: WALSALL HEALTHCARE NHS TRUST | D83: 490 | E83: 8948 | F83: 0.9387755102 | G83: 0.02244897959 | H83: 393 | I83: 67 | J83: 19 | K83: 9 | L83: 2 | M83: 0 | N83: 0 | O83: 29 | P83: 0 | Q83: 461 | R83: 0 | S83: 0
A84: QUE | B84: RT1 | C84: CAMBRIDGESHIRE AND PETERBOROUGH NHS FOUNDATION TRUST | D84: 460 | E84: 26074 | F84: 0.9717391304 | G84: 0.02391304348 | H84: 386 | I84: 61 | J84: 2 | K84: 8 | L84: 3 | M84: 0 | N84: 7 | O84: 20 | P84: 173 | Q84: 0 | R84: 259 | S84: 1
A85: QUE | B85: RYV | C85: CAMBRIDGESHIRE COMMUNITY SERVICES NHS TRUST | D85: 1958 | E85: 54134 | F85: 0.9550561798 | G85: 0.02706843718 | H85: 1625 | I85: 245 | J85: 32 | K85: 27 | L85: 26 | M85: 3 | N85: 0 | O85: 1067 | P85: 355 | Q85: 102 | R85: 434 | S85: 0
A86: QVV | B86: RDY | C86: DORSET HEALTHCARE UNIVERSITY NHS FOUNDATION TRUST | D86: 1976 | E86: 42165 | F86: 0.9453441296 | G86: 0.02530364372 | H86: 1674 | I86: 194 | J86: 40 | K86: 17 | L86: 33 | M86: 18 | N86: 232 | O86: 118 | P86: 135 | Q86: 0 | R86: 1491 | S86: 0
A87: QWE | B87: RJ6 | C87: CROYDON HEALTH SERVICES NHS TRUST | D87: 75 | E87: 14741 | F87: 1 | G87: 0 | H87: 74 | I87: 1 | J87: 0 | K87: 0 | L87: 0 | M87: 0 | N87: 75 | O87: 0 | P87: 0 | Q87: 0 | R87: 0 | S87: 0
A88: QWE | B88: RVR | C88: EPSOM AND ST HELIER UNIVERSITY HOSPITALS NHS TRUST | D88: 396 | E88: 7779 | F88: 0.9747474747 | G88: 0.002525252525 | H88: 352 | I88: 34 | J88: 3 | K88: 0 | L88: 1 | M88: 6 | N88: 0 | O88: 11 | P88: 223 | Q88: 0 | R88: 162 | S88: 0
A89: QWE | B89: RY9 | C89: HOUNSLOW AND RICHMOND COMMUNITY HEALTHCARE NHS TRUST | D89: 947 | E89: 37851 | F89: 0.9672650475 | G89: 0.01583949314 | H89: 653 | I89: 263 | J89: 15 | K89: 7 | L89: 8 | M89: 1 | N89: 0 | O89: 21 | P89: 557 | Q89: 0 | R89: 369 | S89: 0
A90: QWE | B90: RJ7 | C90: ST GEORGE'S UNIVERSITY HOSPITALS NHS FOUNDATION TRUST | D90: 17 | E90: 1775 | F90: 0.9411764706 | G90: 0 | H90: 13 | I90: 3 | J90: 1 | K90: 0 | L90: 0 | M90: 0 | N90: 0 | O90: 0 | P90: 16 | Q90: 0 | R90: 1 | S90: 0
A91: QWO | B91: RCF | C91: AIREDALE NHS FOUNDATION TRUST | D91: 187 | E91: 1558 | F91: 0.8983957219 | G91: 0.04278074866 | H91: 139 | I91: 29 | J91: 9 | K91: 3 | L91: 5 | M91: 2 | N91: 187 | O91: 0 | P91: 0 | Q91: 0 | R91: 0 | S91: 0
A92: QWO | B92: TAD | C92: BRADFORD DISTRICT CARE NHS FOUNDATION TRUST | D92: 867 | E92: 40188 | F92: 0.9757785467 | G92: 0.008073817762 | H92: 737 | I92: 109 | J92: 12 | K92: 5 | L92: 2 | M92: 2 | N92: 0 | O92: 245 | P92: 405 | Q92: 54 | R92: 163 | S92: 0
A93: QWO | B93: RWY | C93: CALDERDALE AND HUDDERSFIELD NHS FOUNDATION TRUST | D93: 143 | E93: 11926 | F93: 0.958041958 | G93: 0.006993006993 | H93: 83 | I93: 54 | J93: 1 | K93: 0 | L93: 1 | M93: 4 | N93: 0 | O93: 0 | P93: 0 | Q93: 0 | R93: 143 | S93: 0
A94: QWO | B94: RY6 | C94: LEEDS COMMUNITY HEALTHCARE NHS TRUST | D94: 273 | E94: 10733 | F94: 0.956043956 | G94: 0.02197802198 | H94: 227 | I94: 34 | J94: 4 | K94: 4 | L94: 2 | M94: 2 | N94: 0 | O94: 0 | P94: 173 | Q94: 0 | R94: 100 | S94: 0
A95: QWO | B95: RXF | C95: MID YORKSHIRE HOSPITALS NHS TRUST | D95: 1614 | E95: 19834 | F95: 0.9876084263 | G95: 0.005576208178 | H95: 1474 | I95: 120 | J95: 8 | K95: 4 | L95: 5 | M95: 3 | N95: 5 | O95: 0 | P95: 1414 | Q95: 0 | R95: 195 | S95: 0
A96: QWO | B96: RXG | C96: SOUTH WEST YORKSHIRE PARTNERSHIP NHS FOUNDATION TRUST | D96: 344 | E96: 11884 | F96: 0.9244186047 | G96: 0.03779069767 | H96: 270 | I96: 48 | J96: 10 | K96: 5 | L96: 8 | M96: 3 | N96: 225 | O96: 4 | P96: 40 | Q96: 0 | R96: 75 | S96: 0
A97: QWU | B97: RYG | C97: COVENTRY AND WARWICKSHIRE PARTNERSHIP NHS TRUST | D97: 0 | E97: 0 | F97: NA | G97: NA | H97: 0 | I97: 0 | J97: 0 | K97: 0 | L97: 0 | M97: 0 | N97: 0 | O97: 0 | P97: 0 | Q97: 0 | R97: 0 | S97: 0
A98: QWU | B98: RJC | C98: SOUTH WARWICKSHIRE NHS FOUNDATION TRUST | D98: 223 | E98: 8479 | F98: 0.9417040359 | G98: 0.04932735426 | H98: 184 | I98: 26 | J98: 1 | K98: 0 | L98: 11 | M98: 1 | N98: 0 | O98: 0 | P98: 204 | Q98: 0 | R98: 19 | S98: 0
A99: QXU | B99: RA2 | C99: ROYAL SURREY COUNTY HOSPITAL NHS FOUNDATION TRUST | D99: 83 | E99: 4302 | F99: 0.9879518072 | G99: 0.01204819277 | H99: 76 | I99: 6 | J99: 0 | K99: 1 | L99: 0 | M99: 0 | N99: 2 | O99: 0 | P99: 77 | Q99: 0 | R99: 4 | S99: 0
A100: QYG | B100: RBS | C100: ALDER HEY CHILDREN'S NHS FOUNDATION TRUST | D100: 120 | E100: 382 | F100: 0.9 | G100: 0.075 | H100: 95 | I100: 13 | J100: 3 | K100: 4 | L100: 5 | M100: 0 | N100: 114 | O100: 6 | P100: 0 | Q100: 0 | R100: 0 | S100: 0
A101: QYG | B101: RY2 | C101: BRIDGEWATER COMMUNITY HEALTHCARE NHS FOUNDATION TRUST | D101: 2071 | E101: 19655 | F101: 0.9410912603 | G101: 0.02848865282 | H101: 1680 | I101: 269 | J101: 42 | K101: 23 | L101: 36 | M101: 21 | N101: 1148 | O101: 0 | P101: 893 | Q101: 0 | R101: 30 | S101: 0
A102: QYG | B102: RXA | C102: CHESHIRE AND WIRRAL PARTNERSHIP NHS FOUNDATION TRUST | D102: 51 | E102: 18057 | F102: 0.8431372549 | G102: 0.07843137255 | H102: * | I102: * | J102: * | K102: * | L102: * | M102: * | N102: * | O102: * | P102: * | Q102: * | R102: * | S102: *
A103: QYG | B103: RJN | C103: EAST CHESHIRE NHS TRUST | D103: 180 | E103: 2312 | F103: 0.8944444444 | G103: 0.02777777778 | H103: 136 | I103: 25 | J103: 9 | K103: 3 | L103: 2 | M103: 5 | N103: 106 | O103: 0 | P103: 0 | Q103: 74 | R103: 0 | S103: 0
A104: QYG | B104: RBQ | C104: LIVERPOOL HEART AND CHEST HOSPITAL NHS FOUNDATION TRUST | D104: 0 | E104: 0 | F104: NA | G104: NA | H104: 0 | I104: 0 | J104: 0 | K104: 0 | L104: 0 | M104: 0 | N104: 0 | O104: 0 | P104: 0 | Q104: 0 | R104: 0 | S104: 0
A105: QYG | B105: RW4 | C105: MERSEY CARE NHS FOUNDATION TRUST | D105: 851 | E105: 74319 | F105: 0.9588719154 | G105: 0.008225616921 | H105: 696 | I105: 120 | J105: 23 | K105: 5 | L105: 2 | M105: 5 | N105: 0 | O105: 0 | P105: 808 | Q105: 0 | R105: 43 | S105: 0
A106: QYG | B106: RBT | C106: MID CHESHIRE HOSPITALS NHS FOUNDATION TRUST | D106: 525 | E106: 6066 | F106: 0.9238095238 | G106: 0.03619047619 | H106: 427 | I106: 58 | J106: 19 | K106: 8 | L106: 11 | M106: 2 | N106: 519 | O106: 0 | P106: 6 | Q106: 0 | R106: 0 | S106: 0
A107: QYG | B107: RVY | C107: SOUTHPORT AND ORMSKIRK HOSPITAL NHS TRUST | D107: 3 | E107: 1468 | F107: * | G107: * | H107: * | I107: * | J107: * | K107: * | L107: * | M107: * | N107: * | O107: * | P107: * | Q107: * | R107: * | S107: *
A108: QYG | B108: RY7 | C108: WIRRAL COMMUNITY HEALTH AND CARE NHS FOUNDATION TRUST | D108: 734 | E108: 30140 | F108: 0.8732970027 | G108: 0.07765667575 | H108: 517 | I108: 124 | J108: 28 | K108: 21 | L108: 36 | M108: 8 | N108: 545 | O108: 0 | P108: 0 | Q108: 0 | R108: 189 | S108: 0
A109: IS1 | B109: NEC | C109: ALLIED HEALTH PROFESSIONALS SUFFOLK CIC | D109: 191 | E109: 11997 | F109: 0.9790575916 | G109: 0.01570680628 | H109: 168 | I109: 19 | J109: 1 | K109: 1 | L109: 2 | M109: 0 | N109: 0 | O109: 0 | P109: 25 | Q109: 0 | R109: 166 | S109: 0
A110: IS1 | B110: 8J094 | C110: BADGER LTD | D110: 68 | E110: 5900 | F110: 0.9705882353 | G110: 0.01470588235 | H110: 56 | I110: 10 | J110: 1 | K110: 0 | L110: 1 | M110: 0 | N110: 0 | O110: 0 | P110: 68 | Q110: 0 | R110: 0 | S110: 0
A111: IS1 | B111: DVG | C111: BARDOC | D111: 38 | E111: 5529 | F111: 0.8684210526 | G111: 0.02631578947 | H111: 20 | I111: 13 | J111: 4 | K111: 0 | L111: 1 | M111: 0 | N111: 0 | O111: 0 | P111: 38 | Q111: 0 | R111: 0 | S111: 0
A112: IS1 | B112: NQV | C112: BROMLEY HEALTHCARE | D112: 307 | E112: 21560 | F112: 0.9153094463 | G112: 0.01954397394 | H112: 251 | I112: 30 | J112: 4 | K112: 1 | L112: 5 | M112: 16 | N112: 0 | O112: 0 | P112: 50 | Q112: 0 | R112: 257 | S112: 0
A113: IS1 | B113: NL3 | C113: CARE PLUS GROUP | D113: 63 | E113: 3405 | F113: 0.9682539683 | G113: 0 | H113: 53 | I113: 8 | J113: 1 | K113: 0 | L113: 0 | M113: 1 | N113: 0 | O113: 0 | P113: 63 | Q113: 0 | R113: 0 | S113: 0
A114: IS1 | B114: Q8V5K | C114: CITIZENS ADVICE STOCKPORT, OLDHAM, ROCHDALE | D114: 5 | E114: 198 | F114: 1 | G114: 0 | H114: 5 | I114: 0 | J114: 0 | K114: 0 | L114: 0 | M114: 0 | N114: 0 | O114: 0 | P114: 2 | Q114: 0 | R114: 3 | S114: 0
A115: IS1 | B115: NNF | C115: CITY HEALTH CARE PARTNERSHIP CIC | D115: 1911 | E115: 28419 | F115: 0.9754055468 | G115: 0.01046572475 | H115: 1642 | I115: 222 | J115: 21 | K115: 10 | L115: 10 | M115: 6 | N115: 0 | O115: 0 | P115: 486 | Q115: 0 | R115: 1425 | S115: 0
A116: IS1 | B116: DCF | C116: CLINICAL PARTNERSHIP | D116: 45 | E116: 280 | F116: 0.9777777778 | G116: 0 | H116: 43 | I116: 1 | J116: 1 | K116: 0 | L116: 0 | M116: 0 | N116: 0 | O116: 0 | P116: 0 | Q116: 0 | R116: 45 | S116: 0
A117: IS1 | B117: NMG | C117: CONNECT HEALTH LIMITED | D117: 3188 | E117: 45432 | F117: 0.8638644918 | G117: 0.05489335006 | H117: 2138 | I117: 616 | J117: 215 | K117: 79 | L117: 96 | M117: 44 | N117: 2828 | O117: 0 | P117: 0 | Q117: 270 | R117: 90 | S117: 0
A118: IS1 | B118: NY6 | C118: CONNECT HEALTH PAIN SERVICES | D118: 547 | E118: 2036 | F118: 0.7458866545 | G118: 0.1444241316 | H118: 281 | I118: 127 | J118: 46 | K118: 27 | L118: 52 | M118: 14 | N118: 547 | O118: 0 | P118: 0 | Q118: 0 | R118: 0 | S118: 0
A119: IS1 | B119: NTV | C119: CSH SURREY | D119: 26 | E119: 20244 | F119: 0.8461538462 | G119: 0.03846153846 | H119: 19 | I119: 3 | J119: 2 | K119: 0 | L119: 1 | M119: 1 | N119: 0 | O119: 5 | P119: 20 | Q119: 0 | R119: 1 | S119: 0
A120: IS1 | B120: 8HE44 | C120: DR KERSHAWS HOSPICE | D120: 15 | E120: 66 | F120: 1 | G120: 0 | H120: 15 | I120: 0 | J120: 0 | K120: 0 | L120: 0 | M120: 0 | N120: 0 | O120: 0 | P120: 15 | Q120: 0 | R120: 0 | S120: 0
A121: IS1 | B121: NAX | C121: EAST COAST COMMUNITY HEALTHCARE C.I.C | D121: 80 | E121: 9480 | F121: 0.9625 | G121: 0.0375 | H121: 68 | I121: 9 | J121: 0 | K121: 0 | L121: 3 | M121: 0 | N121: 0 | O121: 0 | P121: 68 | Q121: 0 | R121: 12 | S121: 0
A122: IS1 | B122: DY6 | C122: EASTLEIGH SOUTHERN PARISHES NETWORK LTD | D122: 104 | E122: 257 | F122: 0.7980769231 | G122: 0.1538461538 | H122: 69 | I122: 14 | J122: 5 | K122: 5 | L122: 11 | M122: 0 | N122: 104 | O122: 0 | P122: 0 | Q122: 0 | R122: 0 | S122: 0
A123: IS1 | B123: NDJ | C123: FIRST COMMUNITY HEALTH AND CARE CIC | D123: 139 | E123: 6779 | F123: 0.9064748201 | G123: 0.02158273381 | H123: 112 | I123: 14 | J123: 3 | K123: 0 | L123: 3 | M123: 7 | N123: 0 | O123: 0 | P123: 115 | Q123: 0 | R123: 24 | S123: 0
A124: IS1 | B124: NDK | C124: FRESHNEY PELHAM CARE LIMITED | D124: 43 | E124: 55 | F124: 1 | G124: 0 | H124: 38 | I124: 5 | J124: 0 | K124: 0 | L124: 0 | M124: 0 | N124: 0 | O124: 0 | P124: 43 | Q124: 0 | R124: 0 | S124: 0
A125: IS1 | B125: NWV01 | C125: GP CARE UK | D125: 167 | E125: 696 | F125: 0.9880239521 | G125: 0.0119760479 | H125: 145 | I125: 20 | J125: 0 | K125: 2 | L125: 0 | M125: 0 | N125: 0 | O125: 0 | P125: 167 | Q125: 0 | R125: 0 | S125: 0
A126: IS1 | B126: NHA | C126: INSIDEVUE LIMITED | D126: 91 | E126: 91 | F126: 0.956043956 | G126: 0.01098901099 | H126: 69 | I126: 18 | J126: 3 | K126: 1 | L126: 0 | M126: 0 | N126: 91 | O126: 0 | P126: 0 | Q126: 0 | R126: 0 | S126: 0
A127: IS1 | B127: NLE01 | C127: LANCASTER HOUSE CONSULTING DIAGNOSTICS SURGICAL LTD HQ | D127: 1345 | E127: 1345 | F127: 0.9710037175 | G127: 0.006691449814 | H127: 832 | I127: 474 | J127: 30 | K127: 9 | L127: 0 | M127: 0 | N127: 0 | O127: 0 | P127: 1345 | Q127: 0 | R127: 0 | S127: 0
A128: IS1 | B128: NR5 | C128: LIVEWELL SOUTHWEST | D128: 240 | E128: 7740 | F128: 0.9625 | G128: 0.004166666667 | H128: 204 | I128: 27 | J128: 6 | K128: 1 | L128: 0 | M128: 2 | N128: 10 | O128: 0 | P128: 214 | Q128: 0 | R128: 16 | S128: 0
A129: IS1 | B129: DAY | C129: LLR PROVIDER COMPANY LTD | D129: 975 | E129: 6799 | F129: 0.9846153846 | G129: 0 | H129: 865 | I129: 95 | J129: 15 | K129: 0 | L129: 0 | M129: 0 | N129: 0 | O129: 0 | P129: 975 | Q129: 0 | R129: 0 | S129: 0
A130: IS1 | B130: NL8 | C130: LOCALA COMMUNITY PARTNERSHIPS CIC | D130: 2193 | E130: 28600 | F130: 0.9644322845 | G130: 0.01778385773 | H130: 1908 | I130: 207 | J130: 38 | K130: 18 | L130: 21 | M130: 1 | N130: 0 | O130: 0 | P130: 0 | Q130: 0 | R130: 2193 | S130: 0
A131: IS1 | B131: NCE | C131: MASTERCALL HEALTHCARE | D131: 394 | E131: 19962 | F131: 0.6472081218 | G131: 0.269035533 | H131: 161 | I131: 94 | J131: 27 | K131: 21 | L131: 85 | M131: 6 | N131: 394 | O131: 0 | P131: 0 | Q131: 0 | R131: 0 | S131: 0
A132: IS1 | B132: NQ7 | C132: MEDWAY COMMUNITY HEALTHCARE | D132: 569 | E132: 15864 | F132: 0.8927943761 | G132: 0.0474516696 | H132: 393 | I132: 115 | J132: 31 | K132: 10 | L132: 17 | M132: 3 | N132: 0 | O132: 7 | P132: 28 | Q132: 0 | R132: 534 | S132: 0
A133: IS1 | B133: ARA | C133: MID HAMPSHIRE HEALTHCARE LIMITED | D133: 82 | E133: 82 | F133: 0.9390243902 | G133: 0.03658536585 | H133: 71 | I133: 6 | J133: 2 | K133: 2 | L133: 1 | M133: 0 | N133: 82 | O133: 0 | P133: 0 | Q133: 0 | R133: 0 | S133: 0
A134: IS1 | B134: NPH | C134: MILTON KEYNES URGENT CARE SERVICES CIC HQ | D134: 663 | E134: 8020 | F134: 0.7978883861 | G134: 0.1161387632 | H134: 326 | I134: 203 | J134: 51 | K134: 29 | L134: 48 | M134: 6 | N134: 0 | O134: 0 | P134: 0 | Q134: 0 | R134: 663 | S134: 0
A135: IS1 | B135: AT7H | C135: NEIGHBOURHOOD CARE LIMITED | D135: 21 | E135: 27 | F135: 1 | G135: 0 | H135: 21 | I135: 0 | J135: 0 | K135: 0 | L135: 0 | M135: 0 | N135: 0 | O135: 0 | P135: 0 | Q135: 21 | R135: 0 | S135: 0
A136: IS1 | B136: NHX | C136: NORTH HAMPSHIRE URGENT CARE | D136: 55 | E136: 7816 | F136: 0.9454545455 | G136: 0 | H136: 37 | I136: 15 | J136: 3 | K136: 0 | L136: 0 | M136: 0 | N136: 0 | O136: 0 | P136: 55 | Q136: 0 | R136: 0 | S136: 0
A137: IS1 | B137: NR3 | C137: NOTTINGHAM CITYCARE PARTNERSHIP | D137: 240 | E137: 14977 | F137: 0.8 | G137: 0.1 | H137: 141 | I137: 51 | J137: 22 | K137: 6 | L137: 18 | M137: 2 | N137: 174 | O137: 16 | P137: 50 | Q137: 0 | R137: 0 | S137: 0
A138: IS1 | B138: NQH | C138: NOVUS HEALTH LTD | D138: 562 | E138: 4436 | F138: 0.9056939502 | G138: 0.04804270463 | H138: 430 | I138: 79 | J138: 23 | K138: 13 | L138: 14 | M138: 3 | N138: 0 | O138: 0 | P138: 234 | Q138: 0 | R138: 328 | S138: 0
A139: IS1 | B139: NLF | C139: PENNINE MUSCULOSKELETAL PARTNERSHIP (ICATS) | D139: 775 | E139: 5848 | F139: 0.9341935484 | G139: 0.01935483871 | H139: 630 | I139: 94 | J139: 29 | K139: 9 | L139: 6 | M139: 7 | N139: 775 | O139: 0 | P139: 0 | Q139: 0 | R139: 0 | S139: 0
A140: IS1 | B140: NTP | C140: PRACTICE PLUS GROUP | D140: 1298 | E140: 27559 | F140: 0.7380585516 | G140: 0.1933744222 | H140: 674 | I140: 284 | J140: 81 | K140: 107 | L140: 144 | M140: 8 | N140: 0 | O140: 0 | P140: 87 | Q140: 0 | R140: 1211 | S140: 0
A141: IS1 | B141: NQA | C141: PROVIDE | D141: 1093 | E141: 12044 | F141: 0.9688929552 | G141: 0.0164684355 | H141: 966 | I141: 93 | J141: 14 | K141: 7 | L141: 11 | M141: 2 | N141: 0 | O141: 0 | P141: 0 | Q141: 0 | R141: 1093 | S141: 0
A142: IS1 | B142: NNC | C142: SOLENT MEDICAL SERVICES LIMITED | D142: 12 | E142: 888 | F142: 1 | G142: 0 | H142: 12 | I142: 0 | J142: 0 | K142: 0 | L142: 0 | M142: 0 | N142: 0 | O142: 0 | P142: 12 | Q142: 0 | R142: 0 | S142: 0
A143: IS1 | B143: NDL | C143: SUFFOLK GP FEDERATION | D143: 755 | E143: 10167 | F143: 0.8940397351 | G143: 0.0582781457 | H143: 551 | I143: 124 | J143: 32 | K143: 23 | L143: 21 | M143: 4 | N143: 755 | O143: 0 | P143: 0 | Q143: 0 | R143: 0 | S143: 0
A144: IS1 | B144: NYG | C144: SUSSEX COMMUNITY DERMATOLOGY SERVICE | D144: 188 | E144: 8725 | F144: 0.9946808511 | G144: 0 | H144: 112 | I144: 75 | J144: 1 | K144: 0 | L144: 0 | M144: 0 | N144: 0 | O144: 0 | P144: 0 | Q144: 0 | R144: 188 | S144: 0
A145: IS1 | B145: NGX | C145: TAURUS HEALTHCARE LTD | D145: 125 | E145: 1860 | F145: 0.928 | G145: 0.032 | H145: 96 | I145: 20 | J145: 5 | K145: 2 | L145: 2 | M145: 0 | N145: 125 | O145: 0 | P145: 0 | Q145: 0 | R145: 0 | S145: 0
A146: IS1 | B146: NN1 | C146: THE ROYAL HOSPITAL FOR NEURO-DISABILITY | D146: 5 | E146: 7 | F146: 1 | G146: 0 | H146: 4 | I146: 1 | J146: 0 | K146: 0 | L146: 0 | M146: 0 | N146: 0 | O146: 0 | P146: 5 | Q146: 0 | R146: 0 | S146: 0
A147: IS1 | B147: 8HN95 | C147: THE STROKE ASSOCIATION | D147: 21 | E147: 21 | F147: 0.9047619048 | G147: 0 | H147: 13 | I147: 6 | J147: 0 | K147: 0 | L147: 0 | M147: 2 | N147: 0 | O147: 0 | P147: 0 | Q147: 21 | R147: 0 | S147: 0
A148: IS1 | B148: VLN99 | C148: TURNING POINT - BIRCHWOOD NURSING HOME | D148: 0 | E148: 16 | F148: NA | G148: NA | H148: 0 | I148: 0 | J148: 0 | K148: 0 | L148: 0 | M148: 0 | N148: 0 | O148: 0 | P148: 0 | Q148: 0 | R148: 0 | S148: 0
A149: IS1 | B149: NQT | C149: VIRGIN CARE LTD | D149: 2347 | E149: 77493 | F149: 0.9492969749 | G149: 0.02471239881 | H149: 1853 | I149: 375 | J149: 39 | K149: 18 | L149: 40 | M149: 22 | N149: 919 | O149: 0 | P149: 1345 | Q149: 0 | R149: 83 | S149: 0
A150: IS1 | B150: NDA | C150: VIRGIN CARE SERVICES LTD | D150: 256 | E150: 8389 | F150: 0.94921875 | G150: 0.01953125 | H150: 205 | I150: 38 | J150: 4 | K150: 5 | L150: 0 | M150: 4 | N150: 20 | O150: 0 | P150: 136 | Q150: 0 | R150: 100 | S150: 0
A151: IS1 | B151: AXG | C151: WILTSHIRE HEALTH & CARE | D151: 290 | E151: 18314 | F151: 0.9310344828 | G151: 0.04482758621 | H151: 233 | I151: 37 | J151: 0 | K151: 6 | L151: 7 | M151: 7 | N151: 36 | O151: 73 | P151: 44 | Q151: 2 | R151: 134 | S151: 1
A152: IS1 | B152: NNV | C152: YOUR HEALTHCARE | D152: 419 | E152: 1334 | F152: 0.9570405728 | G152: 0.00477326969 | H152: 245 | I152: 156 | J152: 16 | K152: 1 | L152: 1 | M152: 0 | N152: 0 | O152: 0 | P152: 36 | Q152: 0 | R152: 383 | S152: 0

Sheet Categories
A3: STP Code | B3: Trust Code | C3: Trust Name | D3: Service Category Provided | E3: Total Responses | F3: Percentage Positive | G3: Percentage Negative | H3: Breakdown of Responses
H4: Very Good | I4: Good | J4: Neither Good nor Poor | K4: Poor | L4: Very Poor | M4: Don't Know
D5: England (including Independent Sector Providers) | E5: 78144 | F5: 0.9349662162 | G5: 0.03118601556 | H5: 59716 | I5: 13346 | J5: 2059 | K5: 1020 | L5: 1417 | M5: 586
D6: England (excluding Independent Sector Providers) | E6: 56193 | F6: 0.9447618031 | G6: 0.02496752265 | H6: 43541 | I6: 9548 | J6: 1283 | K6: 607 | L6: 796 | M6: 418
D7: Selection (excluding suppressed data) | E7: =SUBTOTAL(9,E8:E994) -> 78144 | F7: =IFERROR((H7+I7)/SUM(H7:M7), "-") -> 0.9349819574 | G7: =IFERROR((K7+L7)/SUM(H7:M7), "-") -> 0.03127384663 | H7: =SUBTOTAL(9,H8:H994) -> 59061 | I7: 13229 | J7: 2039 | K7: 1015 | L7: 1403 | M7: 570
A8: QE1 | B8: RXL | C8: BLACKPOOL TEACHING HOSPITALS NHS FOUNDATION TRUST | D8: Children & Family Services | E8: 17 | F8: 0.9411764706 | G8: 0.05882352941 | H8: 14 | I8: 2 | J8: 0 | K8: 1 | L8: 0 | M8: 0
A9: QE1 | B9: RXL | C9: BLACKPOOL TEACHING HOSPITALS NHS FOUNDATION TRUST | D9: Community Inpatient Services | E9: 44 | F9: 0.9545454545 | G9: 0 | H9: 32 | I9: 10 | J9: 2 | K9: 0 | L9: 0 | M9: 0
A10: QE1 | B10: RXL | C10: BLACKPOOL TEACHING HOSPITALS NHS FOUNDATION TRUST | D10: Community Nursing Services | E10: 54 | F10: 1 | G10: 0 | H10: 53 | I10: 1 | J10: 0 | K10: 0 | L10: 0 | M10: 0
A11: QE1 | B11: RXL | C11: BLACKPOOL TEACHING HOSPITALS NHS FOUNDATION TRUST | D11: Rehabilitation & Therapy Services | E11: 482 | F11: 0.9460580913 | G11: 0.02904564315 | H11: 406 | I11: 50 | J11: 10 | K11: 8 | L11: 6 | M11: 2
A12: QE1 | B12: RXL | C12: BLACKPOOL TEACHING HOSPITALS NHS FOUNDATION TRUST | D12: Specialist Services | E12: 319 | F12: 0.9717868339 | G12: 0.01567398119 | H12: 276 | I12: 34 | J12: 4 | K12: 3 | L12: 2 | M12: 0
A13: QE1 | B13: RXR | C13: EAST LANCASHIRE HOSPITALS NHS TRUST | D13: Children & Family Services | E13: 20 | F13: 0.95 | G13: 0 | H13: 15 | I13: 4 | J13: 0 | K13: 0 | L13: 0 | M13: 1
A14: QE1 | B14: RXR | C14: EAST LANCASHIRE HOSPITALS NHS TRUST | D14: Community Healthcare Other | E14: 6 | F14: 1 | G14: 0 | H14: 6 | I14: 0 | J14: 0 | K14: 0 | L14: 0 | M14: 0
A15: QE1 | B15: RXR | C15: EAST LANCASHIRE HOSPITALS NHS TRUST | D15: Community Inpatient Services | E15: 83 | F15: 0.9277108434 | G15: 0 | H15: 57 | I15: 20 | J15: 0 | K15: 0 | L15: 0 | M15: 6
A16: QE1 | B16: RXR | C16: EAST LANCASHIRE HOSPITALS NHS TRUST | D16: Community Nursing Services | E16: 404 | F16: 0.9133663366 | G16: 0.03465346535 | H16: 296 | I16: 73 | J16: 12 | K16: 5 | L16: 9 | M16: 9
A17: QE1 | B17: RXR | C17: EAST LANCASHIRE HOSPITALS NHS TRUST | D17: Rehabilitation & Therapy Services | E17: 143 | F17: 0.9090909091 | G17: 0.04195804196 | H17: 108 | I17: 22 | J17: 4 | K17: 3 | L17: 3 | M17: 3
A18: QE1 | B18: RXR | C18: EAST LANCASHIRE HOSPITALS NHS TRUST | D18: Specialist Services | E18: 8 | F18: 0.625 | G18: 0.125 | H18: 4 | I18: 1 | J18: 0 | K18: 0 | L18: 1 | M18: 2
A19: QE1 | B19: RW5 | C19: LANCASHIRE & SOUTH CUMBRIA NHS FOUNDATION TRUST | D19: Children & Family Services | E19: 12 | F19: 0.9166666667 | G19: 0 | H19: 10 | I19: 1 | J19: 1 | K19: 0 | L19: 0 | M19: 0
A20: QE1 | B20: RW5 | C20: LANCASHIRE & SOUTH CUMBRIA NHS FOUNDATION TRUST | D20: Community Inpatient Services | E20: 5 | F20: 1 | G20: 0 | H20: 4 | I20: 1 | J20: 0 | K20: 0 | L20: 0 | M20: 0
A21: QE1 | B21: RW5 | C21: LANCASHIRE & SOUTH CUMBRIA NHS FOUNDATION TRUST | D21: Community Nursing Services | E21: 418 | F21: 0.9784688995 | G21: 0.007177033493 | H21: 376 | I21: 33 | J21: 5 | K21: 2 | L21: 1 | M21: 1
A22: QE1 | B22: RW5 | C22: LANCASHIRE & SOUTH CUMBRIA NHS FOUNDATION TRUST | D22: Rehabilitation & Therapy Services | E22: 47 | F22: 0.9787234043 | G22: 0 | H22: 39 | I22: 7 | J22: 1 | K22: 0 | L22: 0 | M22: 0
A23: QE1 | B23: RW5 | C23: LANCASHIRE & SOUTH CUMBRIA NHS FOUNDATION TRUST | D23: Specialist Services | E23: 270 | F23: 0.9962962963 | G23: 0 | H23: 255 | I23: 14 | J23: 1 | K23: 0 | L23: 0 | M23: 0
A24: QE1 | B24: RTX | C24: UNIVERSITY HOSPITALS OF MORECAMBE BAY NHS FOUNDATION TRUST | D24: Community Healthcare Other | E24: 21 | F24: 0.8571428571 | G24: 0.04761904762 | H24: * | I24: * | J24: * | K24: * | L24: * | M24: *
A25: QE1 | B25: RTX | C25: UNIVERSITY HOSPITALS OF MORECAMBE BAY NHS FOUNDATION TRUST | D25: Community Inpatient Services | E25: 3 | F25: * | G25: * | H25: * | I25: * | J25: * | K25: * | L25: * | M25: *
A26: QE1 | B26: RTX | C26: UNIVERSITY HOSPITALS OF MORECAMBE BAY NHS FOUNDATION TRUST | D26: Community Nursing Services | E26: 210 | F26: 0.9619047619 | G26: 0.004761904762 | H26: 159 | I26: 43 | J26: 4 | K26: 1 | L26: 0 | M26: 3
A27: QE1 | B27: RTX | C27: UNIVERSITY HOSPITALS OF MORECAMBE BAY NHS FOUNDATION TRUST | D27: Rehabilitation & Therapy Services | E27: 41 | F27: 0.9268292683 | G27: 0 | H27: 30 | I27: 8 | J27: 0 | K27: 0 | L27: 0 | M27: 3
A28: QE1 | B28: RTX | C28: UNIVERSITY HOSPITALS OF MORECAMBE BAY NHS FOUNDATION TRUST | D28: Specialist Services | E28: 476 | F28: 0.9537815126 | G28: 0.01470588235 | H28: 394 | I28: 60 | J28: 6 | K28: 2 | L28: 5 | M28: 9
A29: QF7 | B29: RXE | C29: ROTHERHAM DONCASTER AND SOUTH HUMBER NHS FOUNDATION TRUST | D29: Children & Family Services | E29: 179 | F29: 0.9944134078 | G29: 0.005586592179 | H29: 173 | I29: 5 | J29: 0 | K29: 0 | L29: 1 | M29: 0
A30: QF7 | B30: RXE | C30: ROTHERHAM DONCASTER AND SOUTH HUMBER NHS FOUNDATION TRUST | D30: Community Healthcare Other | E30: 67 | F30: 0.9850746269 | G30: 0.01492537313 | H30: 64 | I30: 2 | J30: 0 | K30: 0 | L30: 1 | M30: 0
A31: QF7 | B31: RXE | C31: ROTHERHAM DONCASTER AND SOUTH HUMBER NHS FOUNDATION TRUST | D31: Community Inpatient Services | E31: 1 | F31: * | G31: * | H31: * | I31: * | J31: * | K31: * | L31: * | M31: *
A32: QF7 | B32: RXE | C32: ROTHERHAM DONCASTER AND SOUTH HUMBER NHS FOUNDATION TRUST | D32: Community Nursing Services | E32: 9 | F32: 1 | G32: 0 | H32: 8 | I32: 1 | J32: 0 | K32: 0 | L32: 0 | M32: 0
A33: QF7 | B33: RXE | C33: ROTHERHAM DONCASTER AND SOUTH HUMBER NHS FOUNDATION TRUST | D33: Rehabilitation & Therapy Services | E33: 2 | F33: * | G33: * | H33: * | I33: * | J33: * | K33: * | L33: * | M33: *
A34: QF7 | B34: RXE | C34: ROTHERHAM DONCASTER AND SOUTH HUMBER NHS FOUNDATION TRUST | D34: Specialist Services | E34: 4 | F34: * | G34: * | H34: * | I34: * | J34: * | K34: * | L34: * | M34: *
A35: QF7 | B35: RCU | C35: SHEFFIELD CHILDREN'S NHS FOUNDATION TRUST | D35: Community Nursing Services | E35: 112 | F35: 0.9642857143 | G35: 0.008928571429 | H35: 102 | I35: 6 | J35: 3 | K35: 1 | L35: 0 | M35: 0
A36: QF7 | B36: RHQ | C36: SHEFFIELD TEACHING HOSPITALS NHS FOUNDATION TRUST | D36: Community Healthcare Other | E36: 39 | F36: 0.6923076923 | G36: 0.2051282051 | H36: 16 | I36: 11 | J36: 4 | K36: 3 | L36: 5 | M36: 0
A37: QF7 | B37: RHQ | C37: SHEFFIELD TEACHING HOSPITALS NHS FOUNDATION TRUST | D37: Community Inpatient Services | E37: 12 | F37: 0.9166666667 | G37: 0 | H37: 8 | I37: 3 | J37: 0 | K37: 0 | L37: 0 | M37: 1
A38: QF7 | B38: RHQ | C38: SHEFFIELD TEACHING HOSPITALS NHS FOUNDATION TRUST | D38: Community Nursing Services | E38: 25 | F38: 0.92 | G38: 0 | H38: 21 | I38: 2 | J38: 2 | K38: 0 | L38: 0 | M38: 0
A39: QF7 | B39: RHQ | C39: SHEFFIELD TEACHING HOSPITALS NHS FOUNDATION TRUST | D39: Rehabilitation & Therapy Services | E39: 126 | F39: 0.9365079365 | G39: 0.01587301587 | H39: 94 | I39: 24 | J39: 6 | K39: 1 | L39: 1 | M39: 0
A40: QF7 | B40: RHQ | C40: SHEFFIELD TEACHING HOSPITALS NHS FOUNDATION TRUST | D40: Specialist Services | E40: 64 | F40: 0.953125 | G40: 0.03125 | H40: 58 | I40: 3 | J40: 0 | K40: 1 | L40: 1 | M40: 1
A41: QF7 | B41: RFR | C41: THE ROTHERHAM NHS FOUNDATION TRUST | D41: Children & Family Services | E41: 33 | F41: 0.9090909091 | G41: 0.0303030303 | H41: 25 | I41: 5 | J41: 2 | K41: 1 | L41: 0 | M41: 0
A42: QF7 | B42: RFR | C42: THE ROTHERHAM NHS FOUNDATION TRUST | D42: Community Nursing Services | E42: 10 | F42: 1 | G42: 0 | H42: * | I42: * | J42: * | K42: * | L42: * | M42: *
A43: QF7 | B43: RFR | C43: THE ROTHERHAM NHS FOUNDATION TRUST | D43: Rehabilitation & Therapy Services | E43: 89 | F43: 0.9213483146 | G43: 0.01123595506 | H43: 79 | I43: 3 | J43: 6 | K43: 0 | L43: 1 | M43: 0
A44: QF7 | B44: RFR | C44: THE ROTHERHAM NHS FOUNDATION TRUST | D44: Specialist Services | E44: 2 | F44: * | G44: * | H44: * | I44: * | J44: * | K44: * | L44: * | M44: *
A45: QGH | B45: R1A | C45: HEREFORDSHIRE AND WORCESTERSHIRE HEALTH AND CARE NHS TRUST | D45: Children & Family Services | E45: 24 | F45: 0.875 | G45: 0.08333333333 | H45: 17 | I45: 4 | J45: 1 | K45: 1 | L45: 1 | M45: 0
A46: QGH | B46: R1A | C46: HEREFORDSHIRE AND WORCESTERSHIRE HEALTH AND CARE NHS TRUST | D46: Community Healthcare Other | E46: 1 | F46: * | G46: * | H46: * | I46: * | J46: * | K46: * | L46: * | M46: *
A47: QGH | B47: R1A | C47: HEREFORDSHIRE AND WORCESTERSHIRE HEALTH AND CARE NHS TRUST | D47: Community Inpatient Services | E47: 16 | F47: 0.9375 | G47: 0 | H47: 11 | I47: 4 | J47: 1 | K47: 0 | L47: 0 | M47: 0
A48: QGH | B48: R1A | C48: HEREFORDSHIRE AND WORCESTERSHIRE HEALTH AND CARE NHS TRUST | D48: Community Nursing Services | E48: 7 | F48: 0.8571428571 | G48: 0.1428571429 | H48: * | I48: * | J48: * | K48: * | L48: * | M48: *
A49: QGH | B49: R1A | C49: HEREFORDSHIRE AND WORCESTERSHIRE HEALTH AND CARE NHS TRUST | D49: Rehabilitation & Therapy Services | E49: 76 | F49: 0.9473684211 | G49: 0.03947368421 | H49: 61 | I49: 11 | J49: 1 | K49: 1 | L49: 2 | M49: 0
A50: QGH | B50: R1A | C50: HEREFORDSHIRE AND WORCESTERSHIRE HEALTH AND CARE NHS TRUST | D50: Specialist Services | E50: 106 | F50: 0.9339622642 | G50: 0.01886792453 | H50: 95 | I50: 4 | J50: 2 | K50: 0 | L50: 2 | M50: 3
A51: QGH | B51: RLQ | C51: WYE VALLEY NHS TRUST | D51: Community Healthcare Other | E51: 3 | F51: * | G51: * | H51: * | I51: * | J51: * | K51: * | L51: * | M51: *
A52: QH8 | B52: R1L | C52: ESSEX PARTNERSHIP UNIVERSITY NHS FOUNDATION TRUST | D52: Children & Family Services | E52: 1 | F52: * | G52: * | H52: * | I52: * | J52: * | K52: * | L52: * | M52: *
A53: QH8 | B53: R1L | C53: ESSEX PARTNERSHIP UNIVERSITY NHS FOUNDATION TRUST | D53: Community Nursing Services | E53: 3 | F53: * | G53: * | H53: * | I53: * | J53: * | K53: * | L53: * | M53: *
A54: QH8 | B54: R1L | C54: ESSEX PARTNERSHIP UNIVERSITY NHS FOUNDATION TRUST | D54: Specialist Services | E54: 6 | F54: 1 | G54: 0 | H54: 4 | I54: 2 | J54: 0 | K54: 0 | L54: 0 | M54: 0
A55: QHL | B55: RYW | C55: BIRMINGHAM COMMUNITY HEALTHCARE NHS FOUNDATION TRUST | D55: Children & Family Services | E55: 139 | F55: 0.8920863309 | G55: 0.07194244604 | H55: 99 | I55: 25 | J55: 5 | K55: 4 | L55: 6 | M55: 0
A56: QHL | B56: RYW | C56: BIRMINGHAM COMMUNITY HEALTHCARE NHS FOUNDATION TRUST | D56: Community Healthcare Other | E56: 17 | F56: 0.8235294118 | G56: 0.1764705882 | H56: 10 | I56: 4 | J56: 0 | K56: 3 | L56: 0 | M56: 0
A57: QHL | B57: RYW | C57: BIRMINGHAM COMMUNITY HEALTHCARE NHS FOUNDATION TRUST | D57: Community Inpatient Services | E57: 51 | F57: 0.9607843137 | G57: 0.01960784314 | H57: 36 | I57: 13 | J57: 1 | K57: 0 | L57: 1 | M57: 0
A58: QHL | B58: RYW | C58: BIRMINGHAM COMMUNITY HEALTHCARE NHS FOUNDATION TRUST | D58: Community Nursing Services | E58: 302 | F58: 0.9900662252 | G58: 0.003311258278 | H58: 275 | I58: 24 | J58: 2 | K58: 0 | L58: 1 | M58: 0
A59: QHL | B59: RYW | C59: BIRMINGHAM COMMUNITY HEALTHCARE NHS FOUNDATION TRUST | D59: Rehabilitation & Therapy Services | E59: 274 | F59: 0.9598540146 | G59: 0.01459854015 | H59: 223 | I59: 40 | J59: 1 | K59: 0 | L59: 4 | M59: 6
A60: QHL | B60: RYW | C60: BIRMINGHAM COMMUNITY HEALTHCARE NHS FOUNDATION TRUST | D60: Specialist Services | E60: 202 | F60: 0.9455445545 | G60: 0.0297029703 | H60: 174 | I60: 17 | J60: 5 | K60: 2 | L60: 4 | M60: 0
A61: QHL | B61: RRK | C61: UNIVERSITY HOSPITALS BIRMINGHAM NHS FOUNDATION TRUST | D61: Children & Family Services | E61: 4 | F61: * | G61: * | H61: * | I61: * | J61: * | K61: * | L61: * | M61: *
A62: QHL | B62: RRK | C62: UNIVERSITY HOSPITALS BIRMINGHAM NHS FOUNDATION TRUST | D62: Community Nursing Services | E62: 4 | F62: * | G62: * | H62: * | I62: * | J62: * | K62: * | L62: * | M62: *
A63: QHL | B63: RRK | C63: UNIVERSITY HOSPITALS BIRMINGHAM NHS FOUNDATION TRUST | D63: Rehabilitation & Therapy Services | E63: 2 | F63: * | G63: * | H63: * | I63: * | J63: * | K63: * | L63: * | M63: *
A64: QHL | B64: RRK | C64: UNIVERSITY HOSPITALS BIRMINGHAM NHS FOUNDATION TRUST | D64: Specialist Services | E64: 16 | F64: 1 | G64: 0 | H64: 16 | I64: 0 | J64: 0 | K64: 0 | L64: 0 | M64: 0
A65: QHM | B65: RNN | C65: NORTH CUMBRIA INTEGRATED CARE NHS FOUNDATION TRUST | D65: Community Healthcare Other | E65: 56 | F65: 1 | G65: 0 | H65: 52 | I65: 4 | J65: 0 | K65: 0 | L65: 0 | M65: 0
A66: QHM | B66: RNN | C66: NORTH CUMBRIA INTEGRATED CARE NHS FOUNDATION TRUST | D66: Community Inpatient Services | E66: 59 | F66: 0.9661016949 | G66: 0.01694915254 | H66: 47 | I66: 10 | J66: 1 | K66: 1 | L66: 0 | M66: 0
A67: QHM | B67: RNN | C67: NORTH CUMBRIA INTEGRATED CARE NHS FOUNDATION TRUST | D67: Community Nursing Services | E67: 207 | F67: 1 | G67: 0 | H67: 190 | I67: 17 | J67: 0 | K67: 0 | L67: 0 | M67: 0
A68: QHM | B68: RNN | C68: NORTH CUMBRIA INTEGRATED CARE NHS FOUNDATION TRUST | D68: Rehabilitation & Therapy Services | E68: 196 | F68: 0.9795918367 | G68: 0 | H68: 183 | I68: 9 | J68: 4 | K68: 0 | L68: 0 | M68: 0
A69: QHM | B69: RNN | C69: NORTH CUMBRIA INTEGRATED CARE NHS FOUNDATION TRUST | D69: Specialist Services | E69: 146 | F69: 0.9794520548 | G69: 0.006849315068 | H69: 131 | I69: 12 | J69: 2 | K69: 0 | L69: 1 | M69: 0
A70: QHM | B70: RVW | C70: NORTH TEES AND HARTLEPOOL NHS FOUNDATION TRUST | D70: Community Nursing Services | E70: 85 | F70: 0.9764705882 | G70: 0.01176470588 | H70: 77 | I70: 6 | J70: 1 | K70: 1 | L70: 0 | M70: 0
A71: QHM | B71: RVW | C71: NORTH TEES AND HARTLEPOOL NHS FOUNDATION TRUST | D71: Rehabilitation & Therapy Services | E71: 27 | F71: 0.962962963 | G71: 0 | H71: 22 | I71: 4 | J71: 1 | K71: 0 | L71: 0 | M71: 0
A72: QHM | B72: RVW | C72: NORTH TEES AND HARTLEPOOL NHS FOUNDATION TRUST | D72: Specialist Services | E72: 82 | F72: 0.9756097561 | G72: 0 | H72: 71 | I72: 9 | J72: 0 | K72: 0 | L72: 0 | M72: 2
A73: QHM | B73: RTF | C73: NORTHUMBRIA HEALTHCARE NHS FOUNDATION TRUST | D73: Community Nursing Services | E73: 155 | F73: 0.935483871 | G73: 0.02580645161 | H73: 120 | I73: 25 | J73: 6 | K73: 1 | L73: 3 | M73: 0
A74: QHM | B74: RTF | C74: NORTHUMBRIA HEALTHCARE NHS FOUNDATION TRUST | D74: Rehabilitation & Therapy Services | E74: 397 | F74: 0.9042821159 | G74: 0.05793450882 | H74: 307 | I74: 52 | J74: 12 | K74: 14 | L74: 9 | M74: 3
A75: QHM | B75: RTF | C75: NORTHUMBRIA HEALTHCARE NHS FOUNDATION TRUST | D75: Specialist Services | E75: 56 | F75: 0.9107142857 | G75: 0.07142857143 | H75: 43 | I75: 8 | J75: 1 | K75: 1 | L75: 3 | M75: 0
A76: QHM | B76: RTR | C76: SOUTH TEES HOSPITALS NHS FOUNDATION TRUST | D76: Children & Family Services | E76: 2 | F76: * | G76: * | H76: * | I76: * | J76: * | K76: * | L76: * | M76: *
A77: QHM | B77: RTR | C77: SOUTH TEES HOSPITALS NHS FOUNDATION TRUST | D77: Community Nursing Services | E77: 198 | F77: 1 | G77: 0 | H77: 174 | I77: 24 | J77: 0 | K77: 0 | L77: 0 | M77: 0
A78: QHM | B78: RTR | C78: SOUTH TEES HOSPITALS NHS FOUNDATION TRUST | D78: Rehabilitation & Therapy Services | E78: 40 | F78: 0.95 | G78: 0 | H78: 33 | I78: 5 | J78: 2 | K78: 0 | L78: 0 | M78: 0
A79: QHM | B79: RTR | C79: SOUTH TEES HOSPITALS NHS FOUNDATION TRUST | D79: Specialist Services | E79: 22 | F79: 0.9545454545 | G79: 0 | H79: * | I79: * | J79: * | K79: * | L79: * | M79: *
A80: QHM | B80: R0B | C80: SOUTH TYNESIDE AND SUNDERLAND NHS FOUNDATION TRUST | D80: Children & Family Services | E80: 47 | F80: 1 | G80: 0 | H80: 47 | I80: 0 | J80: 0 | K80: 0 | L80: 0 | M80: 0
A81: QHM | B81: R0B | C81: SOUTH TYNESIDE AND SUNDERLAND NHS FOUNDATION TRUST | D81: Community Healthcare Other | E81: 66 | F81: 1 | G81: 0 | H81: 65 | I81: 1 | J81: 0 | K81: 0 | L81: 0 | M81: 0
A82: QHM | B82: R0B | C82: SOUTH TYNESIDE AND SUNDERLAND NHS FOUNDATION TRUST | D82: Community Inpatient Services | E82: 6 | F82: 1 | G82: 0 | H82: 5 | I82: 1 | J82: 0 | K82: 0 | L82: 0 | M82: 0
A83: QHM | B83: R0B | C83: SOUTH TYNESIDE AND SUNDERLAND NHS FOUNDATION TRUST | D83: Community Nursing Services | E83: 81 | F83: 1 | G83: 0 | H83: 73 | I83: 8 | J83: 0 | K83: 0 | L83: 0 | M83: 0
A84: QHM | B84: RTD | C84: THE NEWCASTLE UPON TYNE HOSPITALS NHS FOUNDATION TRUST | D84: Community Healthcare Other | E84: 58 | F84: 0.9827586207 | G84: 0 | H84: 45 | I84: 12 | J84: 1 | K84: 0 | L84: 0 | M84: 0
A85: QJ2 | B85: RY8 | C85: DERBYSHIRE COMMUNITY HEALTH SERVICES NHS FOUNDATION TRUST | D85: Children & Family Services | E85: 132 | F85: 0.8863636364 | G85: 0.06818181818 | H85: 85 | I85: 32 | J85: 6 | K85: 5 | L85: 4 | M85: 0
A86: QJ2 | B86: RY8 | C86: DERBYSHIRE COMMUNITY HEALTH SERVICES NHS FOUNDATION TRUST | D86: Community Healthcare Other | E86: 25 | F86: 0.96 | G86: 0 | H86: * | I86: * | J86: * | K86: * | L86: * | M86: *
A87: QJ2 | B87: RY8 | C87: DERBYSHIRE COMMUNITY HEALTH SERVICES NHS FOUNDATION TRUST | D87: Community Nursing Services | E87: 4 | F87: * | G87: * | H87: * | I87: * | J87: * | K87: * | L87: * | M87: *
A88: QJ2 | B88: RY8 | C88: DERBYSHIRE COMMUNITY HEALTH SERVICES NHS FOUNDATION TRUST | D88: Rehabilitation & Therapy Services | E88: 727 | F88: 0.8844566713 | G88: 0.04264099037 | H88: 492 | I88: 151 | J88: 45 | K88: 13 | L88: 18 | M88: 8
A89: QJ2 | B89: RY8 | C89: DERBYSHIRE COMMUNITY HEALTH SERVICES NHS FOUNDATION TRUST | D89: Specialist Services | E89: 433 | F89: 0.8983833718 | G89: 0.03233256351 | H89: 316 | I89: 73 | J89: 26 | K89: 8 | L89: 6 | M89: 4
A90: QJ2 | B90: RXM | C90: DERBYSHIRE HEALTHCARE NHS FOUNDATION TRUST | D90: Children & Family Services | E90: 3 | F90: * | G90: * | H90: * | I90: * | J90: * | K90: * | L90: * | M90: *
A91: QJG | B91: RDE | C91: EAST SUFFOLK AND NORTH ESSEX NHS FOUNDATION TRUST | D91: Community Healthcare Other | E91: 336 | F91: 0.9553571429 | G91: 0.02380952381 | H91: 283 | I91: 38 | J91: 6 | K91: 2 | L91: 6 | M91: 1
A92: QJG | B92: RDE | C92: EAST SUFFOLK AND NORTH ESSEX NHS FOUNDATION TRUST | D92: Community Inpatient Services | E92: 6 | F92: 1 | G92: 0 | H92: 5 | I92: 1 | J92: 0 | K92: 0 | L92: 0 | M92: 0
A93: QJG | B93: RDE | C93: EAST SUFFOLK AND NORTH ESSEX NHS FOUNDATION TRUST | D93: Community Nursing Services | E93: 11 | F93: 1 | G93: 0 | H93: 10 | I93: 1 | J93: 0 | K93: 0 | L93: 0 | M93: 0
A94: QJG | B94: RDE | C94: EAST SUFFOLK AND NORTH ESSEX NHS FOUNDATION TRUST | D94: Rehabilitation & Therapy Services | E94: 2 | F94: * | G94: * | H94: * | I94: * | J94: * | K94: * | L94: * | M94: *
A95: QJG | B95: RDE | C95: EAST SUFFOLK AND NORTH ESSEX NHS FOUNDATION TRUST | D95: Specialist Services | E95: 1 | F95: * | G95: * | H95: * | I95: * | J95: * | K95: * | L95: * | M95: *
A96: QJG | B96: RGR | C96: WEST SUFFOLK NHS FOUNDATION TRUST | D96: Community Inpatient Services | E96: 38 | F96: 0.9473684211 | G96: 0 | H96: 23 | I96: 13 | J96: 2 | K96: 0 | L96: 0 | M96: 0
A97: QJG | B97: RGR | C97: WEST SUFFOLK NHS FOUNDATION TRUST | D97: Community Nursing Services | E97: 8 | F97: 1 | G97: 0 | H97: 7 | I97: 1 | J97: 0 | K97: 0 | L97: 0 | M97: 0
A98: QJG | B98: RGR | C98: WEST SUFFOLK NHS FOUNDATION TRUST | D98: Rehabilitation & Therapy Services | E98: 10 | F98: 1 | G98: 0 | H98: 9 | I98: 1 | J98: 0 | K98: 0 | L98: 0 | M98: 0
A99: QJK | B99: RBZ | C99: NORTHERN DEVON HEALTHCARE NHS TRUST | D99: Community Healthcare Other | E99: 7 | F99: 1 | G99: 0 | H99: 6 | I99: 1 | J99: 0 | K99: 0 | L99: 0 | M99: 0
A100: QJK | B100: RBZ | C100: NORTHERN DEVON HEALTHCARE NHS TRUST | D100: Community Inpatient Services | E100: 1 | F100: * | G100: * | H100: * | I100: * | J100: * | K100: * | L100: * | M100: *
A101: QJK | B101: RBZ | C101: NORTHERN DEVON HEALTHCARE NHS TRUST | D101: Community Nursing Services | E101: 2 | F101: * | G101: * | H101: * | I101: * | J101: * | K101: * | L101: * | M101: *
A102: QJK | B102: RBZ | C102: NORTHERN DEVON HEALTHCARE NHS TRUST | D102: Rehabilitation & Therapy Services | E102: 31 | F102: 0.9677419355 | G102: 0 | H102: 27 | I102: 3 | J102: 1 | K102: 0 | L102: 0 | M102: 0
A103: QJK | B103: RBZ | C103: NORTHERN DEVON HEALTHCARE NHS TRUST | D103: Specialist Services | E103: 78 | F103: 0.9743589744 | G103: 0.01282051282 | H103: 72 | I103: 4 | J103: 1 | K103: 1 | L103: 0 | M103: 0
A104: QJK | B104: RH8 | C104: ROYAL DEVON AND EXETER NHS FOUNDATION TRUST | D104: Community Healthcare Other | E104: 16 | F104: 0.9375 | G104: 0 | H104: 15 | I104: 0 | J104: 1 | K104: 0 | L104: 0 | M104: 0
A105: QJK | B105: RH8 | C105: ROYAL DEVON AND EXETER NHS FOUNDATION TRUST | D105: Community Inpatient Services | E105: 3 | F105: * | G105: * | H105: * | I105: * | J105: * | K105: * | L105: * | M105: *
A106: QJK | B106: RH8 | C106: ROYAL DEVON AND EXETER NHS FOUNDATION TRUST | D106: Community Nursing Services | E106: 16 | F106: 1 | G106: 0 | H106: 16 | I106: 0 | J106: 0 | K106: 0 | L106: 0 | M106: 0
A107: QJK | B107: RH8 | C107: ROYAL DEVON AND EXETER NHS FOUNDATION TRUST | D107: Rehabilitation & Therapy Services | E107: 17 | F107: 1 | G107: 0 | H107: 17 | I107: 0 | J107: 0 | K107: 0 | L107: 0 | M107: 0
A108: QJK | B108: RH8 | C108: ROYAL DEVON AND EXETER NHS FOUNDATION TRUST | D108: Specialist Services | E108: 10 | F108: 1 | G108: 0 | H108: * | I108: * | J108: * | K108: * | L108: * | M108: *
A109: QJK | B109: RA9 | C109: TORBAY AND SOUTH DEVON NHS FOUNDATION TRUST | D109: Children & Family Services | E109: 1 | F109: * | G109: * | H109: * | I109: * | J109: * | K109: * | L109: * | M109: *
A110: QJK | B110: RA9 | C110: TORBAY AND SOUTH DEVON NHS FOUNDATION TRUST | D110: Community Healthcare Other | E110: 11 | F110: 0.9090909091 | G110: 0 | H110: * | I110: * | J110: * | K110: * | L110: * | M110: *
A111: QJK | B111: RA9 | C111: TORBAY AND SOUTH DEVON NHS FOUNDATION TRUST | D111: Community Inpatient Services | E111: 40 | F111: 0.95 | G111: 0.025 | H111: 31 | I111: 7 | J111: 1 | K111: 0 | L111: 1 | M111: 0
A112: QJK | B112: RA9 | C112: TORBAY AND SOUTH DEVON NHS FOUNDATION TRUST | D112: Rehabilitation & Therapy Services | E112: 60 | F112: 0.9833333333 | G112: 0.01666666667 | H112: 54 | I112: 5 | J112: 0 | K112: 1 | L112: 0 | M112: 0
A113: QJK | B113: RA9 | C113: TORBAY AND SOUTH DEVON NHS FOUNDATION TRUST | D113: Specialist Services | E113: 35 | F113: 0.9714285714 | G113: 0.02857142857 | H113: 30 | I113: 4 | J113: 0 | K113: 0 | L113: 1 | M113: 0
A114: QJK | B114: RK9 | C114: UNIVERSITY HOSPITALS PLYMOUTH NHS TRUST | D114: Children & Family Services | E114: 50 | F114: 0.92 | G114: 0 | H114: 36 | I114: 10 | J114: 1 | K114: 0 | L114: 0 | M114: 3
A115: QJM | B115: RY5 | C115: LINCOLNSHIRE COMMUNITY HEALTH SERVICES NHS TRUST | D115: Children & Family Services | E115: 1 | F115: * | G115: * | H115: * | I115: * | J115: * | K115: * | L115: * | M115: *
A116: QJM | B116: RY5 | C116: LINCOLNSHIRE COMMUNITY HEALTH SERVICES NHS TRUST | D116: Community Healthcare Other | E116: 810 | F116: 0.8049382716 | G116: 0.1185185185 | H116: 527 | I116: 125 | J116: 53 | K116: 41 | L116: 55 | M116: 9
A117: QJM | B117: RY5 | C117: LINCOLNSHIRE COMMUNITY HEALTH SERVICES NHS TRUST | D117: Community Inpatient Services | E117: 17 | F117: 0.9411764706 | G117: 0 | H117: 15 | I117: 1 | J117: 1 | K117: 0 | L117: 0 | M117: 0
A118: QJM | B118: RY5 | C118: LINCOLNSHIRE COMMUNITY HEALTH SERVICES NHS TRUST | D118: Community Nursing Services | E118: 289 | F118: 0.892733564 | G118: 0.04152249135 | H118: 218 | I118: 40 | J118: 13 | K118: 6 | L118: 6 | M118: 6
A119: QJM | B119: RY5 | C119: LINCOLNSHIRE COMMUNITY HEALTH SERVICES NHS TRUST | D119: Rehabilitation & Therapy Services | E119: 4 | F119: * | G119: * | H119: * | I119: * | J119: * | K119: * | L119: * | M119: *
A120: QJM | B120: RY5 | C120: LINCOLNSHIRE COMMUNITY HEALTH SERVICES NHS TRUST | D120: Specialist Services | E120: 8 | F120: 0.625 | G120: 0.25 | H120: 4 | I120: 1 | J120: 1 | K120: 2 | L120: 0 | M120: 0
A121: QK1 | B121: RT5 | C121: LEICESTERSHIRE PARTNERSHIP NHS TRUST | D121: Children & Family Services | E121: 199 | F121: 0.7889447236 | G121: 0.1105527638 | H121: 128 | I121: 29 | J121: 12 | K121: 7 | L121: 15 | M121: 8
A122: QK1 | B122: RT5 | C122: LEICESTERSHIRE PARTNERSHIP NHS TRUST | D122: Community Healthcare Other | E122: 131 | F122: 0.679389313 | G122: 0.1297709924 | H122: 69 | I122: 20 | J122: 14 | K122: 3 | L122: 14 | M122: 11
A123: QK1 | B123: RT5 | C123: LEICESTERSHIRE PARTNERSHIP NHS TRUST | D123: Community Inpatient Services | E123: 146 | F123: 0.9109589041 | G123: 0.02739726027 | H123: 108 | I123: 25 | J123: 6 | K123: 2 | L123: 2 | M123: 3
A124: QK1 | B124: RT5 | C124: LEICESTERSHIRE PARTNERSHIP NHS TRUST | D124: Community Nursing Services | E124: 206 | F124: 0.9029126214 | G124: 0.02912621359 | H124: 136 | I124: 50 | J124: 10 | K124: 4 | L124: 2 | M124: 4
A125: QK1 | B125: RT5 | C125: LEICESTERSHIRE PARTNERSHIP NHS TRUST | D125: Rehabilitation & Therapy Services | E125: 1799 | F125: 0.8732629238 | G125: 0.06670372429 | H125: 1249 | I125: 322 | J125: 88 | K125: 45 | L125: 75 | M125: 20
A126: QK1 | B126: RT5 | C126: LEICESTERSHIRE PARTNERSHIP NHS TRUST | D126: Specialist Services | E126: 288 | F126: 0.8923611111 | G126: 0.02777777778 | H126: 197 | I126: 60 | J126: 13 | K126: 3 | L126: 5 | M126: 10
A127: QKK | B127: RJ1 | C127: GUY'S AND ST THOMAS' NHS FOUNDATION TRUST | D127: Children & Family Services | E127: 105 | F127: 0.980952381 | G127: 0.01904761905 | H127: 91 | I127: 12 | J127: 0 | K127: 1 | L127: 1 | M127: 0
A128: QKK | B128: RJ1 | C128: GUY'S AND ST THOMAS' NHS FOUNDATION TRUST | D128: Community Nursing Services | E128: 108 | F128: 0.9259259259 | G128: 0.03703703704 | H128: 78 | I128: 22 | J128: 3 | K128: 2 | L128: 2 | M128: 1
A129: QKK | B129: RJ1 | C129: GUY'S AND ST THOMAS' NHS FOUNDATION TRUST | D129: Rehabilitation & Therapy Services | E129: 107 | F129: 0.9626168224 | G129: 0.009345794393 | H129: 66 | I129: 37 | J129: 3 | K129: 1 | L129: 0 | M129: 0
A130: QKK | B130: RJ1 | C130: GUY'S AND ST THOMAS' NHS FOUNDATION TRUST | D130: Specialist Services | E130: 14 | F130: 1 | G130: 0 | H130: 14 | I130: 0 | J130: 0 | K130: 0 | L130: 0 | M130: 0
A131: QKK | B131: RJ2 | C131: LEWISHAM AND GREENWICH NHS TRUST | D131: Children & Family Services | E131: 45 | F131: 0.9333333333 | G131: 0.04444444444 | H131: 37 | I131: 5 | J131: 1 | K131: 0 | L131: 2 | M131: 0
A132: QKK | B132: RJ2 | C132: LEWISHAM AND GREENWICH NHS TRUST | D132: Community Healthcare Other | E132: 76 | F132: 0.9605263158 | G132: 0.02631578947 | H132: 64 | I132: 9 | J132: 1 | K132: 1 | L132: 1 | M132: 0
A133: QKK | B133: RJ2 | C133: LEWISHAM AND GREENWICH NHS TRUST | D133: Community Nursing Services | E133: 334 | F133: 0.9790419162 | G133: 0.008982035928 | H133: 183 | I133: 144 | J133: 4 | K133: 2 | L133: 1 | M133: 0
A134: QKK | B134: RJ2 | C134: LEWISHAM AND GREENWICH NHS TRUST | D134: Rehabilitation & Therapy Services | E134: 7 | F134: 1 | G134: 0 | H134: 6 | I134: 1 | J134: 0 | K134: 0 | L134: 0 | M134: 0
A135: QKK | B135: RJ2 | C135: LEWISHAM AND GREENWICH NHS TRUST | D135: Specialist Services | E135: 320 | F135: 0.975 | G135: 0.0125 | H135: 278 | I135: 34 | J135: 4 | K135: 2 | L135: 2 | M135: 0
A136: QKK | B136: RPG | C136: OXLEAS NHS FOUNDATION TRUST | D136: Children & Family Services | E136: 153 | F136: 0.8758169935 | G136: 0.03267973856 | H136: 103 | I136: 31 | J136: 10 | K136: 4 | L136: 1 | M136: 4
A137: QKK | B137: RPG | C137: OXLEAS NHS FOUNDATION TRUST | D137: Community Healthcare Other | E137: 56 | F137: 0.6785714286 | G137: 0.1071428571 | H137: 26 | I137: 12 | J137: 12 | K137: 2 | L137: 4 | M137: 0
A138: QKK | B138: RPG | C138: OXLEAS NHS FOUNDATION TRUST | D138: Community Inpatient Services | E138: 30 | F138: 0.9333333333 | G138: 0 | H138: 23 | I138: 5 | J138: 1 | K138: 0 | L138: 0 | M138: 1
A139: QKK | B139: RPG | C139: OXLEAS NHS FOUNDATION TRUST | D139: Community Nursing Services | E139: 326 | F139: 0.8711656442 | G139: 0.05828220859 | H139: 203 | I139: 81 | J139: 20 | K139: 8 | L139: 11 | M139: 3
A140: QKK | B140: RPG | C140: OXLEAS NHS FOUNDATION TRUST | D140: Rehabilitation & Therapy Services | E140: 446 | F140: 0.9215246637 | G140: 0.02466367713 | H140: 337 | I140: 74 | J140: 23 | K140: 2 | L140: 9 | M140: 1
A141: QKK | B141: RPG | C141: OXLEAS NHS FOUNDATION TRUST | D141: Specialist Services | E141: 109 | F141: 0.9724770642 | G141: 0.009174311927 | H141: 82 | I141: 24 | J141: 2 | K141: 0 | L141: 1 | M141: 0
A142: QKS | B142: RYY | C142: KENT COMMUNITY HEALTH NHS FOUNDATION TRUST | D142: Children & Family Services | E142: 558 | F142: 0.9802867384 | G142: 0.005376344086 | H142: 488 | I142: 59 | J142: 7 | K142: 0 | L142: 3 | M142: 1
A143: QKS | B143: RYY | C143: KENT COMMUNITY HEALTH NHS FOUNDATION TRUST | D143: Community Healthcare Other | E143: 2869 | F143: 0.9874520739 | G143: 0.00348553503 | H143: 2640 | I143: 193 | J143: 22 | K143: 5 | L143: 5 | M143: 4
A144: QKS | B144: RYY | C144: KENT COMMUNITY HEALTH NHS FOUNDATION TRUST | D144: Community Inpatient Services | E144: 65 | F144: 0.9538461538 | G144: 0.04615384615 | H144: 43 | I144: 19 | J144: 0 | K144: 3 | L144: 0 | M144: 0
A145: QKS | B145: RYY | C145: KENT COMMUNITY HEALTH NHS FOUNDATION TRUST | D145: Community Nursing Services | E145: 367 | F145: 0.9182561308 | G145: 0.02452316076 | H145: 279 | I145: 58 | J145: 18 | K145: 5 | L145: 4 | M145: 3
A146: QKS | B146: RYY | C146: KENT COMMUNITY HEALTH NHS FOUNDATION TRUST | D146: Rehabilitation & Therapy Services | E146: 59 | F146: 0.9661016949 | G146: 0.01694915254 | H146: 40 | I146: 17 | J146: 1 | K146: 0 | L146: 1 | M146: 0
A147: QKS | B147: RYY | C147: KENT COMMUNITY HEALTH NHS FOUNDATION TRUST | D147: Specialist Services | E147: 467 | F147: 0.9764453961 | G147: 0.006423982869 | H147: 388 | I147: 68 | J147: 8 | K147: 1 | L147: 2 | M147: 0
A148: QM7 | B148: RY4 | C148: HERTFORDSHIRE COMMUNITY NHS TRUST | D148: Children & Family Services | E148: 122 | F148: 0.9508196721 | G148: 0.04098360656 | H148: 101 | I148: 15 | J148: 1 | K148: 5 | L148: 0 | M148: 0
A149: QM7 | B149: RY4 | C149: HERTFORDSHIRE COMMUNITY NHS TRUST | D149: Community Healthcare Other | E149: 25 | F149: 0.96 | G149: 0.04 | H149: 24 | I149: 0 | J149: 0 | K149: 1 | L149: 0 | M149: 0
A150: QM7 | B150: RY4 | C150: HERTFORDSHIRE COMMUNITY NHS TRUST | D150: Community Inpatient Services | E150: 7 | F150: 0.8571428571 | G150: 0 | H150: 4 | I150: 2 | J150: 1 | K150: 0 | L150: 0 | M150: 0
A151: QM7 | B151: RY4 | C151: HERTFORDSHIRE COMMUNITY NHS TRUST | D151: Community Nursing Services | E151: 68 | F151: 0.9705882353 | G151: 0.01470588235 | H151: 59 | I151: 7 | J151: 0 | K151: 1 | L151: 0 | M151: 1
A152: QM7 | B152: RY4 | C152: HERTFORDSHIRE COMMUNITY NHS TRUST | D152: Rehabilitation & Therapy Services | E152: 124 | F152: 0.8951612903 | G152: 0.04032258065 | H152: 98 | I152: 13 | J152: 8 | K152: 3 | L152: 2 | M152: 0
A153: QM7 | B153: RY4 | C153: HERTFORDSHIRE COMMUNITY NHS TRUST | D153: Specialist Services | E153: 160 | F153: 0.9875 | G153: 0.00625 | H153: 149 | I153: 9 | J153: 1 | K153: 1 | L153: 0 | M153: 0
A154: QMF | B154: RWK | C154: EAST LONDON NHS FOUNDATION TRUST | D154: Children & Family Services | E154: 82 | F154: 1 | G154: 0 | H154: 74 | I154: 8 | J154: 0 | K154: 0 | L154: 0 | M154: 0
A155: QMF | B155: RWK | C155: EAST LONDON NHS FOUNDATION TRUST | D155: Community Healthcare Other | E155: 501 | F155: 0.9880239521 | G155: 0.005988023952 | H155: 410 | I155: 85 | J155: 3 | K155: 1 | L155: 2 | M155: 0
A156: QMF | B156: RWK | C156: EAST LONDON NHS FOUNDATION TRUST | D156: Community Inpatient Services | E156: 8 | F156: 1 | G156: 0 | H156: 5 | I156: 3 | J156: 0 | K156: 0 | L156: 0 | M156: 0
A157: QMF | B157: RWK | C157: EAST LONDON NHS FOUNDATION TRUST | D157: Community Nursing Services | E157: 40 | F157: 0.825 | G157: 0.05 | H157: 26 | I157: 7 | J157: 3 | K157: 1 | L157: 1 | M157: 2
A158: QMF | B158: RWK | C158: EAST LONDON NHS FOUNDATION TRUST | D158: Rehabilitation & Therapy Services | E158: 39 | F158: 0.8205128205 | G158: 0.07692307692 | H158: 26 | I158: 6 | J158: 4 | K158: 1 | L158: 2 | M158: 0
A159: QMF | B159: RWK | C159: EAST LONDON NHS FOUNDATION TRUST | D159: Specialist Services | E159: 2336 | F159: 0.9974315068 | G159: 0 | H159: 9 | I159: 2321 | J159: 6 | K159: 0 | L159: 0 | M159: 0
A160: QMF | B160: RQX | C160: HOMERTON UNIVERSITY HOSPITAL NHS FOUNDATION TRUST | D160: Children & Family Services | E160: 16 | F160: 1 | G160: 0 | H160: 14 | I160: 2 | J160: 0 | K160: 0 | L160: 0 | M160: 0
A161: QMF | B161: RQX | C161: HOMERTON UNIVERSITY HOSPITAL NHS FOUNDATION TRUST | D161: Community Nursing Services | E161: 19 | F161: 1 | G161: 0 | H161: 17 | I161: 2 | J161: 0 | K161: 0 | L161: 0 | M161: 0
A162: QMF | B162: RQX | C162: HOMERTON UNIVERSITY HOSPITAL NHS FOUNDATION TRUST | D162: Rehabilitation & Therapy Services | E162: 62 | F162: 0.935483871 | G162: 0.03225806452 | H162: 47 | I162: 11 | J162: 2 | K162: 0 | L162: 2 | M162: 0
A163: QMF | B163: RQX | C163: HOMERTON UNIVERSITY HOSPITAL NHS FOUNDATION TRUST | D163: Specialist Services | E163: 13 | F163: 1 | G163: 0 | H163: 12 | I163: 1 | J163: 0 | K163: 0 | L163: 0 | M163: 0
A164: QMF | B164: RAT | C164: NORTH EAST LONDON NHS FOUNDATION TRUST | D164: Children & Family Services | E164: 342 | F164: 0.8713450292 | G164: 0.0730994152 | H164: 223 | I164: 75 | J164: 11 | K164: 9 | L164: 16 | M164: 8
A165: QMF | B165: RAT | C165: NORTH EAST LONDON NHS FOUNDATION TRUST | D165: Community Healthcare Other | E165: 139 | F165: 0.7553956835 | G165: 0.1223021583 | H165: 78 | I165: 27 | J165: 13 | K165: 8 | L165: 9 | M165: 4
A166: QMF | B166: RAT | C166: NORTH EAST LONDON NHS FOUNDATION TRUST | D166: Community Inpatient Services | E166: 29 | F166: 0.7586206897 | G166: 0 | H166: 16 | I166: 6 | J166: 6 | K166: 0 | L166: 0 | M166: 1
A167: QMF | B167: RAT | C167: NORTH EAST LONDON NHS FOUNDATION TRUST | D167: Community Nursing Services | E167: 155 | F167: 0.8838709677 | G167: 0.03225806452 | H167: 115 | I167: 22 | J167: 11 | K167: 3 | L167: 2 | M167: 2
A168: QMF | B168: RAT | C168: NORTH EAST LONDON NHS FOUNDATION TRUST | D168: Rehabilitation & Therapy Services | E168: 104 | F168: 0.8653846154 | G168: 0.06730769231 | H168: 64 | I168: 26 | J168: 5 | K168: 4 | L168: 3 | M168: 2
A169: QMF | B169: RAT | C169: NORTH EAST LONDON NHS FOUNDATION TRUST | D169: Specialist Services | E169: 276 | F169: 0.8985507246 | G169: 0.02173913043 | H169: 209 | I169: 39 | J169: 18 | K169: 3 | L169: 3 | M169: 4
A170: QMJ | B170: RRP | C170: BARNET, ENFIELD AND HARINGEY MENTAL HEALTH NHS TRUST | D170: Children & Family Services | E170: 32 | F170: 0.96875 | G170: 0 | H170: 23 | I170: 8 | J170: 1 | K170: 0 | L170: 0 | M170: 0
A171: QMJ | B171: RRP | C171: BARNET, ENFIELD AND HARINGEY MENTAL HEALTH NHS TRUST | D171: Community Inpatient Services | E171: 7 | F171: 1 | G171: 0 | H171: 1 | I171: 6 | J171: 0 | K171: 0 | L171: 0 | M171: 0
A172: QMJ | B172: RRP | C172: BARNET, ENFIELD AND HARINGEY MENTAL HEALTH NHS TRUST | D172: Community Nursing Services | E172: 43 | F172: 0.8604651163 | G172: 0.02325581395 | H172: 24 | I172: 13 | J172: 5 | K172: 1 | L172: 0 | M172: 0
A173: QMJ | B173: RRP | C173: BARNET, ENFIELD AND HARINGEY MENTAL HEALTH NHS TRUST | D173: Rehabilitation & Therapy Services | E173: 29 | F173: 1 | G173: 0 | H173: 25 | I173: 4 | J173: 0 | K173: 0 | L173: 0 | M173: 0
A174: QMJ | B174: RRP | C174: BARNET, ENFIELD AND HARINGEY MENTAL HEALTH NHS TRUST | D174: Specialist Services | E174: 13 | F174: 1 | G174: 0 | H174: 11 | I174: 2 | J174: 0 | K174: 0 | L174: 0 | M174: 0
A175: QMJ | B175: RV3 | C175: CENTRAL AND NORTH WEST LONDON NHS FOUNDATION TRUST | D175: Children & Family Services | E175: 52 | F175: 0.9807692308 | G175: 0 | H175: 43 | I175: 8 | J175: 0 | K175: 0 | L175: 0 | M175: 1
A176: QMJ | B176: RV3 | C176: CENTRAL AND NORTH WEST LONDON NHS FOUNDATION TRUST | D176: Community Healthcare Other | E176: 38 | F176: 1 | G176: 0 | H176: 32 | I176: 6 | J176: 0 | K176: 0 | L176: 0 | M176: 0
A177: QMJ | B177: RV3 | C177: CENTRAL AND NORTH WEST LONDON NHS FOUNDATION TRUST | D177: Community Inpatient Services | E177: 86 | F177: 0.9302325581 | G177: 0.02325581395 | H177: 47 | I177: 33 | J177: 4 | K177: 1 | L177: 1 | M177: 0
A178: QMJ | B178: RV3 | C178: CENTRAL AND NORTH WEST LONDON NHS FOUNDATION TRUST | D178: Community Nursing Services | E178: 36 | F178: 0.9722222222 | G178: 0 | H178: 25 | I178: 10 | J178: 1 | K178: 0 | L178: 0 | M178: 0
A179: QMJ | B179: RV3 | C179: CENTRAL AND NORTH WEST LONDON NHS FOUNDATION TRUST | D179: Rehabilitation & Therapy Services | E179: 58 | F179: 0.9827586207 | G179: 0 | H179: 49 | I179: 8 | J179: 1 | K179: 0 | L179: 0 | M179: 0
A180: QMJ | B180: RV3 | C180: CENTRAL AND NORTH WEST LONDON NHS FOUNDATION TRUST | D180: Specialist Services | E180: 35 | F180: 1 | G180: 0 | H180: 31 | I180: 4 | J180: 0 | K180: 0 | L180: 0 | M180: 0
A181: QMJ | B181: RKE | C181: WHITTINGTON HEALTH NHS TRUST | D181: Children & Family Services | E181: 1 | F181: * | G181: * | H181: * | I181: * | J181: * | K181: * | L181: * | M181: *
A182: QMJ | B182: RKE | C182: WHITTINGTON HEALTH NHS TRUST | D182: Rehabilitation & Therapy Services | E182: 141 | F182: 0.9432624113 | G182: 0.03546099291 | H182: * | I182: * | J182: * | K182: * | L182: * | M182: *
A183: QMJ | B183: RKE | C183: WHITTINGTON HEALTH NHS TRUST | D183: Specialist Services | E183: 469 | F183: 0.9914712154 | G183: 0.004264392324 | H183: 427 | I183: 38 | J183: 2 | K183: 0 | L183: 2 | M183: 0
A184: QMM | B184: RY3 | C184: NORFOLK COMMUNITY HEALTH AND CARE NHS TRUST | D184: Children & Family Services | E184: 3 | F184: * | G184: * | H184: * | I184: * | J184: * | K184: * | L184: * | M184: *
A185: QMM | B185: RY3 | C185: NORFOLK COMMUNITY HEALTH AND CARE NHS TRUST | D185: Community Inpatient Services | E185: 19 | F185: 0.7368421053 | G185: 0 | H185: * | I185: * | J185: * | K185: * | L185: * | M185: *
A186: QMM | B186: RY3 | C186: NORFOLK COMMUNITY HEALTH AND CARE NHS TRUST | D186: Community Nursing Services | E186: 164 | F186: 0.9451219512 | G186: 0.01829268293 | H186: 111 | I186: 44 | J186: 6 | K186: 1 | L186: 2 | M186: 0
A187: QMM | B187: RY3 | C187: NORFOLK COMMUNITY HEALTH AND CARE NHS TRUST | D187: Rehabilitation & Therapy Services | E187: 82 | F187: 0.9756097561 | G187: 0.0243902439 | H187: 73 | I187: 7 | J187: 0 | K187: 1 | L187: 1 | M187: 0
A188: QMM | B188: RY3 | C188: NORFOLK COMMUNITY HEALTH AND CARE NHS TRUST | D188: Specialist Services | E188: 84 | F188: 1 | G188: 0 | H188: 76 | I188: 8 | J188: 0 | K188: 0 | L188: 0 | M188: 0
A189: QNC | B189: RRE | C189: MIDLANDS PARTNERSHIP NHS FOUNDATION TRUST | D189: Children & Family Services | E189: 56 | F189: 0.9821428571 | G189: 0.01785714286 | H189: 49 | I189: 6 | J189: 0 | K189: 0 | L189: 1 | M189: 0
A190: QNC | B190: RRE | C190: MIDLANDS PARTNERSHIP NHS FOUNDATION TRUST | D190: Community Healthcare Other | E190: 333 | F190: 0.954954955 | G190: 0.01801801802 | H190: 211 | I190: 107 | J190: 9 | K190: 0 | L190: 6 | M190: 0
A191: QNC | B191: RRE | C191: MIDLANDS PARTNERSHIP NHS FOUNDATION TRUST | D191: Community Inpatient Services | E191: 29 | F191: 1 | G191: 0 | H191: 23 | I191: 6 | J191: 0 | K191: 0 | L191: 0 | M191: 0
A192: QNC | B192: RRE | C192: MIDLANDS PARTNERSHIP NHS FOUNDATION TRUST | D192: Community Nursing Services | E192: 40 | F192: 0.975 | G192: 0.025 | H192: 32 | I192: 7 | J192: 0 | K192: 1 | L192: 0 | M192: 0
A193: QNC | B193: RRE | C193: MIDLANDS PARTNERSHIP NHS FOUNDATION TRUST | D193: Rehabilitation & Therapy Services | E193: 61 | F193: 1 | G193: 0 | H193: 48 | I193: 13 | J193: 0 | K193: 0 | L193: 0 | M193: 0
A194: QNC | B194: RRE | C194: MIDLANDS PARTNERSHIP NHS FOUNDATION TRUST | D194: Specialist Services | E194: 124 | F194: 0.9274193548 | G194: 0.06451612903 | H194: 104 | I194: 11 | J194: 1 | K194: 0 | L194: 8 | M194: 0
A195: QNQ | B195: RWX | C195: BERKSHIRE HEALTHCARE NHS FOUNDATION TRUST | D195: Children & Family Services | E195: 473 | F195: 0.9090909091 | G195: 0.05708245243 | H195: 377 | I195: 53 | J195: 13 | K195: 11 | L195: 16 | M195: 3
A196: QNQ | B196: RWX | C196: BERKSHIRE HEALTHCARE NHS FOUNDATION TRUST | D196: Community Inpatient Services | E196: 105 | F196: 0.9523809524 | G196: 0.01904761905 | H196: 74 | I196: 26 | J196: 3 | K196: 2 | L196: 0 | M196: 0
A197: QNQ | B197: RWX | C197: BERKSHIRE HEALTHCARE NHS FOUNDATION TRUST | D197: Community Nursing Services | E197: 124 | F197: 0.9596774194 | G197: 0.02419354839 | H197: 97 | I197: 22 | J197: 2 | K197: 3 | L197: 0 | M197: 0
A198: QNQ | B198: RWX | C198: BERKSHIRE HEALTHCARE NHS FOUNDATION TRUST | D198: Rehabilitation & Therapy Services | E198: 527 | F198: 0.9392789374 | G198: 0.03036053131 | H198: 432 | I198: 63 | J198: 12 | K198: 11 | L198: 5 | M198: 4
A199: QNQ | B199: RWX | C199: BERKSHIRE HEALTHCARE NHS FOUNDATION TRUST | D199: Specialist Services | E199: 451 | F199: 0.933481153 | G199: 0.0332594235 | H199: 368 | I199: 53 | J199: 9 | K199: 6 | L199: 9 | M199: 6
A200: QNQ | B200: RDU | C200: FRIMLEY HEALTH NHS FOUNDATION TRUST | D200: Community Healthcare Other | E200: 64 | F200: 0.96875 | G200: 0 | H200: 57 | I200: 5 | J200: 2 | K200: 0 | L200: 0 | M200: 0
A201: QNX | B201: RXC | C201: EAST SUSSEX HEALTHCARE NHS TRUST | D201: Community Inpatient Services | E201: 27 | F201: 0.962962963 | G201: 0 | H201: 20 | I201: 6 | J201: 1 | K201: 0 | L201: 0 | M201: 0
A202: QNX | B202: RXC | C202: EAST SUSSEX HEALTHCARE NHS TRUST | D202: Community Nursing Services | E202: 27 | F202: 1 | G202: 0 | H202: 24 | I202: 3 | J202: 0 | K202: 0 | L202: 0 | M202: 0
... 301 more rows

Sheet BS (hidden)
B1: Sort | C1: Region (LO) Code | D1: Region (LO) name | E1: Trust code | F1: Trust name | G1: Category | I1: Sort Lists: | J1: Sort range… | K1: Sort range… | L1: Sort range… | M1: Reference Region Lists: | N1: Code… | O1: Name… | P1: Linked Region Lists: | Q1: Code… | R1: Name… | S1: Reference Lists: | T1: Code… | U1: Code… | V1: Name… | W1: Category… | X1: Trusts Linked lists: | Y1: Code… | Z1: Name… | AA1: Categories Linked lists: | AB1: Code… | AC1: Name… | AD1: Category…
A2: Region (LO) | B2: 1 | C2: 1 | D2: 1 | E2: - | F2: - | G2: - | J2: STP Code | K2: STP Code | L2: STP Code | N2: QE1 | O2: LANCASHIRE AND SOUTH CUMBRIA ICS | Q2: QE1 | R2: LANCASHIRE AND SOUTH CUMBRIA ICS | T2: QE1 | U2: RXL | V2: BLACKPOOL TEACHING HOSPITALS NHS FOUNDATION TRUST | W2: Children & Family Services | Y2: 8HE44 | Z2: AIREDALE NHS FOUNDATION TRUST | AB2: 8HE44 | AC2: AIREDALE NHS FOUNDATION TRUST | AD2: Children & Family Services
A3: Trusts | B3: 1 | C3: 1 | D3: 1 | E3: 1 | F3: 1 | G3: - | J3: STP Name | K3: Trust Code | L3: Trust Code | N3: QF7 | O3: SOUTH YORKSHIRE AND BASSETLAW STP | Q3: QF7 | R3: SOUTH YORKSHIRE AND BASSETLAW STP | T3: QE1 | U3: RXL | V3: BLACKPOOL TEACHING HOSPITALS NHS FOUNDATION TRUST | W3: Community Inpatient Services | Y3: 8HN95 | Z3: ALDER HEY CHILDREN'S NHS FOUNDATION TRUST | AB3: 8HN95 | AC3: ALDER HEY CHILDREN'S NHS FOUNDATION TRUST | AD3: Community Healthcare Other
A4: Categories | B4: 1 | C4: 1 | D4: 1 | E4: 1 | F4: 1 | G4: 1 | J4: Total Responses | K4: Trust Name | L4: Trust Name | N4: QGH | O4: HEREFORDSHIRE AND WORCESTERSHIRE STP | Q4: QGH | R4: HEREFORDSHIRE AND WORCESTERSHIRE STP | T4: QE1 | U4: RXL | V4: BLACKPOOL TEACHING HOSPITALS NHS FOUNDATION TRUST | W4: Community Nursing Services | Y4: 8J094 | Z4: ALLIED HEALTH PROFESSIONALS SUFFOLK CIC | AB4: 8J094 | AC4: ALLIED HEALTH PROFESSIONALS SUFFOLK CIC | AD4: Community Inpatient Services
J5: Total Eligible | K5: Total Responses | L5: Category | N5: QH8 | O5: MID AND SOUTH ESSEX STP | Q5: QH8 | R5: MID AND SOUTH ESSEX STP | T5: QE1 | U5: RXL | V5: BLACKPOOL TEACHING HOSPITALS NHS FOUNDATION TRUST | W5: Rehabilitation & Therapy Services | Y5: ARA | Z5: BADGER LTD | AB5: ARA | AC5: BADGER LTD | AD5: Community Nursing Services
J6: Percentage Positive | K6: Total Eligible | L6: Total Responses | N6: QHL | O6: BIRMINGHAM AND SOLIHULL STP | Q6: QHL | R6: BIRMINGHAM AND SOLIHULL STP | T6: QE1 | U6: RXL | V6: BLACKPOOL TEACHING HOSPITALS NHS FOUNDATION TRUST | W6: Specialist Services | Y6: AT7H | Z6: BARDOC | AB6: AT7H | AC6: BARDOC | AD6: Rehabilitation & Therapy Services
J7: Percentage Negative | K7: Percentage Positive | L7: Percentage Positive | N7: QHM | O7: CUMBRIA AND NORTH EAST STP | Q7: QHM | R7: CUMBRIA AND NORTH EAST STP | T7: QE1 | U7: RXR | V7: EAST LANCASHIRE HOSPITALS NHS TRUST | W7: Children & Family Services | Y7: AXG | Z7: BARNET, ENFIELD AND HARINGEY MENTAL HEALTH NHS TRUST | AB7: AXG | AC7: BARNET, ENFIELD AND HARINGEY MENTAL HEALTH NHS TRUST | AD7: Specialist Services
J8: Very good | K8: Percentage Negative | L8: Percentage Negative | N8: QJ2 | O8: JOINED UP CARE DERBYSHIRE STP | Q8: QJ2 | R8: JOINED UP CARE DERBYSHIRE STP | T8: QE1 | U8: RXR | V8: EAST LANCASHIRE HOSPITALS NHS TRUST | W8: Community Healthcare Other | Y8: DAY | Z8: BERKSHIRE HEALTHCARE NHS FOUNDATION TRUST | AB8: DAY | AC8: BERKSHIRE HEALTHCARE NHS FOUNDATION TRUST
J9: Good | K9: Very good | L9: Very good | N9: QJG | O9: SUFFOLK AND NORTH EAST ESSEX ICS | Q9: QJG | R9: SUFFOLK AND NORTH EAST ESSEX ICS | T9: QE1 | U9: RXR | V9: EAST LANCASHIRE HOSPITALS NHS TRUST | W9: Community Inpatient Services | Y9: DCF | Z9: BIRMINGHAM COMMUNITY HEALTHCARE NHS FOUNDATION TRUST | AB9: DCF | AC9: BIRMINGHAM COMMUNITY HEALTHCARE NHS FOUNDATION TRUST
J10: Neither Good nor Poor | K10: Good | L10: Good | N10: QJK | O10: DEVON STP | Q10: QJK | R10: DEVON STP | T10: QE1 | U10: RXR | V10: EAST LANCASHIRE HOSPITALS NHS TRUST | W10: Community Nursing Services | Y10: DVG | Z10: BLACK COUNTRY HEALTHCARE NHS FOUNDATION TRUST | AB10: DVG | AC10: BLACK COUNTRY HEALTHCARE NHS FOUNDATION TRUST
J11: Poor | K11: Neither Good nor Poor | L11: Neither Good nor Poor | N11: QJM | O11: LINCOLNSHIRE STP | Q11: QJM | R11: LINCOLNSHIRE STP | T11: QE1 | U11: RXR | V11: EAST LANCASHIRE HOSPITALS NHS TRUST | W11: Rehabilitation & Therapy Services | Y11: DY6 | Z11: BLACKPOOL TEACHING HOSPITALS NHS FOUNDATION TRUST | AB11: DY6 | AC11: BLACKPOOL TEACHING HOSPITALS NHS FOUNDATION TRUST
J12: Very Poor | K12: Poor | L12: Poor | N12: QK1 | O12: LEICESTER, LEICESTERSHIRE AND RUTLAND STP | Q12: QK1 | R12: LEICESTER, LEICESTERSHIRE AND RUTLAND STP | T12: QE1 | U12: RXR | V12: EAST LANCASHIRE HOSPITALS NHS TRUST | W12: Specialist Services | Y12: NAX | Z12: BOLTON NHS FOUNDATION TRUST | AB12: NAX | AC12: BOLTON NHS FOUNDATION TRUST
J13: Don't Know | K13: Very Poor | L13: Very Poor | N13: QKK | O13: OUR HEALTHIER SOUTH EAST LONDON STP | Q13: QKK | R13: OUR HEALTHIER SOUTH EAST LONDON STP | T13: QE1 | U13: RW5 | V13: LANCASHIRE & SOUTH CUMBRIA NHS FOUNDATION TRUST | W13: Children & Family Services | Y13: NCE | Z13: BRADFORD DISTRICT CARE NHS FOUNDATION TRUST | AB13: NCE | AC13: BRADFORD DISTRICT CARE NHS FOUNDATION TRUST
K14: Don't Know | L14: Don't Know | N14: QKS | O14: KENT AND MEDWAY STP | Q14: QKS | R14: KENT AND MEDWAY STP | T14: QE1 | U14: RW5 | V14: LANCASHIRE & SOUTH CUMBRIA NHS FOUNDATION TRUST | W14: Community Inpatient Services | Y14: NDA | Z14: BRIDGEWATER COMMUNITY HEALTHCARE NHS FOUNDATION TRUST | AB14: NDA | AC14: BRIDGEWATER COMMUNITY HEALTHCARE NHS FOUNDATION TRUST
K15: Mode SMS | N15: QM7 | O15: HERTFORDSHIRE AND WEST ESSEX STP | Q15: QM7 | R15: HERTFORDSHIRE AND WEST ESSEX STP | T15: QE1 | U15: RW5 | V15: LANCASHIRE & SOUTH CUMBRIA NHS FOUNDATION TRUST | W15: Community Nursing Services | Y15: NDJ | Z15: BROMLEY HEALTHCARE | AB15: NDJ | AC15: BROMLEY HEALTHCARE
K16: Mode Electronic Discharge | N16: QMF | O16: EAST LONDON HEALTH & CARE PARTNERSHIP (STP) | Q16: QMF | R16: EAST LONDON HEALTH & CARE PARTNERSHIP (STP) | T16: QE1 | U16: RW5 | V16: LANCASHIRE & SOUTH CUMBRIA NHS FOUNDATION TRUST | W16: Rehabilitation & Therapy Services | Y16: NDK | Z16: BUCKINGHAMSHIRE HEALTHCARE NHS TRUST | AB16: NDK | AC16: BUCKINGHAMSHIRE HEALTHCARE NHS TRUST
K17: Mode Paper Home | N17: QMJ | O17: NORTH LONDON PARTNERS IN HEALTH & CARE (STP) | Q17: QMJ | R17: NORTH LONDON PARTNERS IN HEALTH & CARE (STP) | T17: QE1 | U17: RW5 | V17: LANCASHIRE & SOUTH CUMBRIA NHS FOUNDATION TRUST | W17: Specialist Services | Y17: NDL | Z17: CALDERDALE AND HUDDERSFIELD NHS FOUNDATION TRUST | AB17: NDL | AC17: CALDERDALE AND HUDDERSFIELD NHS FOUNDATION TRUST
K18: Mode Telephone | N18: QMM | O18: NORFOLK AND WAVENEY HEALTH & CARE PARTNERSHIP (STP) | Q18: QMM | R18: NORFOLK AND WAVENEY HEALTH & CARE PARTNERSHIP (STP) | T18: QE1 | U18: RTX | V18: UNIVERSITY HOSPITALS OF MORECAMBE BAY NHS FOUNDATION TRUST | W18: Community Healthcare Other | Y18: NEC | Z18: CAMBRIDGESHIRE AND PETERBOROUGH NHS FOUNDATION TRUST | AB18: NEC | AC18: CAMBRIDGESHIRE AND PETERBOROUGH NHS FOUNDATION TRUST
K19: Mode Online | N19: QNC | O19: STAFFORDSHIRE & STOKE ON TRENT STP | Q19: QNC | R19: STAFFORDSHIRE & STOKE ON TRENT STP | T19: QE1 | U19: RTX | V19: UNIVERSITY HOSPITALS OF MORECAMBE BAY NHS FOUNDATION TRUST | W19: Community Inpatient Services | Y19: NGX | Z19: CAMBRIDGESHIRE COMMUNITY SERVICES NHS TRUST | AB19: NGX | AC19: CAMBRIDGESHIRE COMMUNITY SERVICES NHS TRUST
K20: Mode Other | N20: QNQ | O20: FRIMLEY HEALTH & CARE (STP) | Q20: QNQ | R20: FRIMLEY HEALTH & CARE (STP) | T20: QE1 | U20: RTX | V20: UNIVERSITY HOSPITALS OF MORECAMBE BAY NHS FOUNDATION TRUST | W20: Community Nursing Services | Y20: NHA | Z20: CARE PLUS GROUP | AB20: NHA | AC20: CARE PLUS GROUP
N21: QNX | O21: SUSSEX HEALTH AND CARE PARTNERSHIP | Q21: QNX | R21: SUSSEX HEALTH AND CARE PARTNERSHIP | T21: QE1 | U21: RTX | V21: UNIVERSITY HOSPITALS OF MORECAMBE BAY NHS FOUNDATION TRUST | W21: Rehabilitation & Therapy Services | Y21: NHX | Z21: CENTRAL AND NORTH WEST LONDON NHS FOUNDATION TRUST | AB21: NHX | AC21: CENTRAL AND NORTH WEST LONDON NHS FOUNDATION TRUST
N22: QOC | O22: SHROPSHIRE AND TELFORD AND WREKIN STP | Q22: QOC | R22: SHROPSHIRE AND TELFORD AND WREKIN STP | T22: QE1 | U22: RTX | V22: UNIVERSITY HOSPITALS OF MORECAMBE BAY NHS FOUNDATION TRUST | W22: Specialist Services | Y22: NL3 | Z22: CENTRAL LONDON COMMUNITY HEALTHCARE NHS TRUST | AB22: NL3 | AC22: CENTRAL LONDON COMMUNITY HEALTHCARE NHS TRUST
N23: QOP | O23: GREATER MANCHESTER HEALTH & SOCIAL CARE PARTNERSHIP | Q23: QOP | R23: GREATER MANCHESTER HEALTH & SOCIAL CARE PARTNERSHIP | T23: QF7 | U23: RXE | V23: ROTHERHAM DONCASTER AND SOUTH HUMBER NHS FOUNDATION TRUST | W23: Children & Family Services | Y23: NL8 | Z23: CHELSEA AND WESTMINSTER HOSPITAL NHS FOUNDATION TRUST | AB23: NL8 | AC23: CHELSEA AND WESTMINSTER HOSPITAL NHS FOUNDATION TRUST
N24: QOQ | O24: HUMBER, COAST AND VALE STP | Q24: QOQ | R24: HUMBER, COAST AND VALE STP | T24: QF7 | U24: RXE | V24: ROTHERHAM DONCASTER AND SOUTH HUMBER NHS FOUNDATION TRUST | W24: Community Healthcare Other | Y24: NLE01 | Z24: CHESHIRE AND WIRRAL PARTNERSHIP NHS FOUNDATION TRUST | AB24: NLE01 | AC24: CHESHIRE AND WIRRAL PARTNERSHIP NHS FOUNDATION TRUST
N25: QOX | O25: BATH AND NORTH EAST SOMERSET, SWINDON AND WILTSHIRE STP | Q25: QOX | R25: BATH AND NORTH EAST SOMERSET, SWINDON AND WILTSHIRE STP | T25: QF7 | U25: RXE | V25: ROTHERHAM DONCASTER AND SOUTH HUMBER NHS FOUNDATION TRUST | W25: Community Inpatient Services | Y25: NLF | Z25: CITIZENS ADVICE STOCKPORT, OLDHAM, ROCHDALE | AB25: NLF | AC25: CITIZENS ADVICE STOCKPORT, OLDHAM, ROCHDALE
N26: QPM | O26: NORTHAMPTONSHIRE STP | Q26: QPM | R26: NORTHAMPTONSHIRE STP | T26: QF7 | U26: RXE | V26: ROTHERHAM DONCASTER AND SOUTH HUMBER NHS FOUNDATION TRUST | W26: Community Nursing Services | Y26: NMG | Z26: CITY HEALTH CARE PARTNERSHIP CIC | AB26: NMG | AC26: CITY HEALTH CARE PARTNERSHIP CIC
N27: QR1 | O27: GLOUCESTERSHIRE STP | Q27: QR1 | R27: GLOUCESTERSHIRE STP | T27: QF7 | U27: RXE | V27: ROTHERHAM DONCASTER AND SOUTH HUMBER NHS FOUNDATION TRUST | W27: Rehabilitation & Therapy Services | Y27: NN1 | Z27: CLINICAL PARTNERSHIP | AB27: NN1 | AC27: CLINICAL PARTNERSHIP
N28: QRL | O28: HAMPSHIRE AND THE ISLE OF WIGHT STP | Q28: QRL | R28: HAMPSHIRE AND THE ISLE OF WIGHT STP | T28: QF7 | U28: RXE | V28: ROTHERHAM DONCASTER AND SOUTH HUMBER NHS FOUNDATION TRUST | W28: Specialist Services | Y28: NNC | Z28: CONNECT HEALTH LIMITED | AB28: NNC | AC28: CONNECT HEALTH LIMITED
N29: QRV | O29: NORTH WEST LONDON HEALTH & CARE PARTNERSHIP (STP) | Q29: QRV | R29: NORTH WEST LONDON HEALTH & CARE PARTNERSHIP (STP) | T29: QF7 | U29: RCU | V29: SHEFFIELD CHILDREN'S NHS FOUNDATION TRUST | W29: Community Nursing Services | Y29: NNF | Z29: CONNECT HEALTH PAIN SERVICES | AB29: NNF | AC29: CONNECT HEALTH PAIN SERVICES
N30: QSL | O30: SOMERSET STP | Q30: QSL | R30: SOMERSET STP | T30: QF7 | U30: RHQ | V30: SHEFFIELD TEACHING HOSPITALS NHS FOUNDATION TRUST | W30: Community Healthcare Other | Y30: NNV | Z30: CORNWALL PARTNERSHIP NHS FOUNDATION TRUST | AB30: NNV | AC30: CORNWALL PARTNERSHIP NHS FOUNDATION TRUST
N31: QT1 | O31: NOTTINGHAM AND NOTTINGHAMSHIRE HEALTH AND CARE STP | Q31: QT1 | R31: NOTTINGHAM AND NOTTINGHAMSHIRE HEALTH AND CARE STP | T31: QF7 | U31: RHQ | V31: SHEFFIELD TEACHING HOSPITALS NHS FOUNDATION TRUST | W31: Community Inpatient Services | Y31: NPH | Z31: CROYDON HEALTH SERVICES NHS TRUST | AB31: NPH | AC31: CROYDON HEALTH SERVICES NHS TRUST
N32: QU9 | O32: BUCKINGHAMSHIRE, OXFORDSHIRE AND BERKSHIRE WEST STP | Q32: QU9 | R32: BUCKINGHAMSHIRE, OXFORDSHIRE AND BERKSHIRE WEST STP | T32: QF7 | U32: RHQ | V32: SHEFFIELD TEACHING HOSPITALS NHS FOUNDATION TRUST | W32: Community Nursing Services | Y32: NQ7 | Z32: CSH SURREY | AB32: NQ7 | AC32: CSH SURREY
N33: QUA | O33: THE BLACK COUNTRY AND WEST BIRMINGHAM STP | Q33: QUA | R33: THE BLACK COUNTRY AND WEST BIRMINGHAM STP | T33: QF7 | U33: RHQ | V33: SHEFFIELD TEACHING HOSPITALS NHS FOUNDATION TRUST | W33: Rehabilitation & Therapy Services | Y33: NQA | Z33: DERBYSHIRE COMMUNITY HEALTH SERVICES NHS FOUNDATION TRUST | AB33: NQA | AC33: DERBYSHIRE COMMUNITY HEALTH SERVICES NHS FOUNDATION TRUST
N34: QUE | O34: CAMBRIDGESHIRE AND PETERBOROUGH STP | Q34: QUE | R34: CAMBRIDGESHIRE AND PETERBOROUGH STP | T34: QF7 | U34: RHQ | V34: SHEFFIELD TEACHING HOSPITALS NHS FOUNDATION TRUST | W34: Specialist Services | Y34: NQH | Z34: DERBYSHIRE HEALTHCARE NHS FOUNDATION TRUST | AB34: NQH | AC34: DERBYSHIRE HEALTHCARE NHS FOUNDATION TRUST
N35: QUY | O35: BRISTOL, NORTH SOMERSET AND SOUTH GLOUCESTERSHIRE STP | Q35: QUY | R35: BRISTOL, NORTH SOMERSET AND SOUTH GLOUCESTERSHIRE STP | T35: QF7 | U35: RFR | V35: THE ROTHERHAM NHS FOUNDATION TRUST | W35: Children & Family Services | Y35: NQT | Z35: DORSET HEALTHCARE UNIVERSITY NHS FOUNDATION TRUST | AB35: NQT | AC35: DORSET HEALTHCARE UNIVERSITY NHS FOUNDATION TRUST
N36: QVV | O36: DORSET STP | Q36: QVV | R36: DORSET STP | T36: QF7 | U36: RFR | V36: THE ROTHERHAM NHS FOUNDATION TRUST | W36: Community Nursing Services | Y36: NQV | Z36: DR KERSHAWS HOSPICE | AB36: NQV | AC36: DR KERSHAWS HOSPICE
N37: QWE | O37: SOUTH WEST LONDON HEALTH & CARE PARTNERSHIP (STP) | Q37: QWE | R37: SOUTH WEST LONDON HEALTH & CARE PARTNERSHIP (STP) | T37: QF7 | U37: RFR | V37: THE ROTHERHAM NHS FOUNDATION TRUST | W37: Rehabilitation & Therapy Services | Y37: NR3 | Z37: EAST CHESHIRE NHS TRUST | AB37: NR3 | AC37: EAST CHESHIRE NHS TRUST
N38: QWO | O38: WEST YORKSHIRE AND HARROGATE HEALTH & CARE PARTNERSHIP (STP) | Q38: QWO | R38: WEST YORKSHIRE AND HARROGATE HEALTH & CARE PARTNERSHIP (STP) | T38: QF7 | U38: RFR | V38: THE ROTHERHAM NHS FOUNDATION TRUST | W38: Specialist Services | Y38: NR5 | Z38: EAST COAST COMMUNITY HEALTHCARE C.I.C | AB38: NR5 | AC38: EAST COAST COMMUNITY HEALTHCARE C.I.C
N39: QWU | O39: COVENTRY AND WARWICKSHIRE STP | Q39: QWU | R39: COVENTRY AND WARWICKSHIRE STP | T39: QGH | U39: R1A | V39: HEREFORDSHIRE AND WORCESTERSHIRE HEALTH AND CARE NHS TRUST | W39: Children & Family Services | Y39: NTP | Z39: EAST LANCASHIRE HOSPITALS NHS TRUST | AB39: NTP | AC39: EAST LANCASHIRE HOSPITALS NHS TRUST
N40: QXU | O40: SURREY HEARTLANDS HEALTH & CARE PARTNERSHIP (STP) | Q40: QXU | R40: SURREY HEARTLANDS HEALTH & CARE PARTNERSHIP (STP) | T40: QGH | U40: R1A | V40: HEREFORDSHIRE AND WORCESTERSHIRE HEALTH AND CARE NHS TRUST | W40: Community Healthcare Other | Y40: NTV | Z40: EAST LONDON NHS FOUNDATION TRUST | AB40: NTV | AC40: EAST LONDON NHS FOUNDATION TRUST
N41: QYG | O41: CHESHIRE AND MERSEYSIDE STP | Q41: QYG | R41: CHESHIRE AND MERSEYSIDE STP | T41: QGH | U41: R1A | V41: HEREFORDSHIRE AND WORCESTERSHIRE HEALTH AND CARE NHS TRUST | W41: Community Inpatient Services | Y41: NWV01 | Z41: EAST SUFFOLK AND NORTH ESSEX NHS FOUNDATION TRUST | AB41: NWV01 | AC41: EAST SUFFOLK AND NORTH ESSEX NHS FOUNDATION TRUST
N42: IS1 | O42: Independent Sector Providers | Q42: IS1 | R42: Independent Sector Providers | T42: QGH | U42: R1A | V42: HEREFORDSHIRE AND WORCESTERSHIRE HEALTH AND CARE NHS TRUST | W42: Community Nursing Services | Y42: NY6 | Z42: EAST SUSSEX HEALTHCARE NHS TRUST | AB42: NY6 | AC42: EAST SUSSEX HEALTHCARE NHS TRUST
T43: QGH | U43: R1A | V43: HEREFORDSHIRE AND WORCESTERSHIRE HEALTH AND CARE NHS TRUST | W43: Rehabilitation & Therapy Services | Y43: NYG | Z43: EASTLEIGH SOUTHERN PARISHES NETWORK LTD | AB43: NYG | AC43: EASTLEIGH SOUTHERN PARISHES NETWORK LTD
T44: QGH | U44: R1A | V44: HEREFORDSHIRE AND WORCESTERSHIRE HEALTH AND CARE NHS TRUST | W44: Specialist Services | Y44: Q8V5K | Z44: EPSOM AND ST HELIER UNIVERSITY HOSPITALS NHS TRUST | AB44: Q8V5K | AC44: EPSOM AND ST HELIER UNIVERSITY HOSPITALS NHS TRUST
T45: QGH | U45: RLQ | V45: WYE VALLEY NHS TRUST | W45: Community Healthcare Other | Y45: R0A | Z45: ESSEX PARTNERSHIP UNIVERSITY NHS FOUNDATION TRUST | AB45: R0A | AC45: ESSEX PARTNERSHIP UNIVERSITY NHS FOUNDATION TRUST
T46: QH8 | U46: R1L | V46: ESSEX PARTNERSHIP UNIVERSITY NHS FOUNDATION TRUST | W46: Children & Family Services | Y46: R0B | Z46: FIRST COMMUNITY HEALTH AND CARE CIC | AB46: R0B | AC46: FIRST COMMUNITY HEALTH AND CARE CIC
T47: QH8 | U47: R1L | V47: ESSEX PARTNERSHIP UNIVERSITY NHS FOUNDATION TRUST | W47: Community Nursing Services | Y47: R1A | Z47: FRESHNEY PELHAM CARE LIMITED | AB47: R1A | AC47: FRESHNEY PELHAM CARE LIMITED
T48: QH8 | U48: R1L | V48: ESSEX PARTNERSHIP UNIVERSITY NHS FOUNDATION TRUST | W48: Specialist Services | Y48: R1C | Z48: FRIMLEY HEALTH NHS FOUNDATION TRUST | AB48: R1C | AC48: FRIMLEY HEALTH NHS FOUNDATION TRUST
T49: QHL | U49: RYW | V49: BIRMINGHAM COMMUNITY HEALTHCARE NHS FOUNDATION TRUST | W49: Children & Family Services | Y49: R1D | Z49: GLOUCESTERSHIRE HEALTH AND CARE NHS FOUNDATION TRUST | AB49: R1D | AC49: GLOUCESTERSHIRE HEALTH AND CARE NHS FOUNDATION TRUST
T50: QHL | U50: RYW | V50: BIRMINGHAM COMMUNITY HEALTHCARE NHS FOUNDATION TRUST | W50: Community Healthcare Other | Y50: R1F | Z50: GP CARE UK | AB50: R1F | AC50: GP CARE UK
T51: QHL | U51: RYW | V51: BIRMINGHAM COMMUNITY HEALTHCARE NHS FOUNDATION TRUST | W51: Community Inpatient Services | Y51: R1K | Z51: GUY'S AND ST THOMAS' NHS FOUNDATION TRUST | AB51: R1K | AC51: GUY'S AND ST THOMAS' NHS FOUNDATION TRUST
T52: QHL | U52: RYW | V52: BIRMINGHAM COMMUNITY HEALTHCARE NHS FOUNDATION TRUST | W52: Community Nursing Services | Y52: R1L | Z52: HARROGATE AND DISTRICT NHS FOUNDATION TRUST | AB52: R1L | AC52: HARROGATE AND DISTRICT NHS FOUNDATION TRUST
T53: QHL | U53: RYW | V53: BIRMINGHAM COMMUNITY HEALTHCARE NHS FOUNDATION TRUST | W53: Rehabilitation & Therapy Services | Y53: RA2 | Z53: HEREFORDSHIRE AND WORCESTERSHIRE HEALTH AND CARE NHS TRUST | AB53: RA2 | AC53: HEREFORDSHIRE AND WORCESTERSHIRE HEALTH AND CARE NHS TRUST
T54: QHL | U54: RYW | V54: BIRMINGHAM COMMUNITY HEALTHCARE NHS FOUNDATION TRUST | W54: Specialist Services | Y54: RA9 | Z54: HERTFORDSHIRE COMMUNITY NHS TRUST | AB54: RA9 | AC54: HERTFORDSHIRE COMMUNITY NHS TRUST
T55: QHL | U55: RRK | V55: UNIVERSITY HOSPITALS BIRMINGHAM NHS FOUNDATION TRUST | W55: Children & Family Services | Y55: RAT | Z55: HOMERTON UNIVERSITY HOSPITAL NHS FOUNDATION TRUST | AB55: RAT | AC55: HOMERTON UNIVERSITY HOSPITAL NHS FOUNDATION TRUST
T56: QHL | U56: RRK | V56: UNIVERSITY HOSPITALS BIRMINGHAM NHS FOUNDATION TRUST | W56: Community Nursing Services | Y56: RBK | Z56: HOUNSLOW AND RICHMOND COMMUNITY HEALTHCARE NHS TRUST | AB56: RBK | AC56: HOUNSLOW AND RICHMOND COMMUNITY HEALTHCARE NHS TRUST
T57: QHL | U57: RRK | V57: UNIVERSITY HOSPITALS BIRMINGHAM NHS FOUNDATION TRUST | W57: Rehabilitation & Therapy Services | Y57: RBS | Z57: HUMBER TEACHING NHS FOUNDATION TRUST | AB57: RBS | AC57: HUMBER TEACHING NHS FOUNDATION TRUST
T58: QHL | U58: RRK | V58: UNIVERSITY HOSPITALS BIRMINGHAM NHS FOUNDATION TRUST | W58: Specialist Services | Y58: RBT | Z58: INSIDEVUE LIMITED | AB58: RBT | AC58: INSIDEVUE LIMITED
T59: QHM | U59: RNN | V59: NORTH CUMBRIA INTEGRATED CARE NHS FOUNDATION TRUST | W59: Community Healthcare Other | Y59: RBZ | Z59: ISLE OF WIGHT NHS TRUST | AB59: RBZ | AC59: ISLE OF WIGHT NHS TRUST
T60: QHM | U60: RNN | V60: NORTH CUMBRIA INTEGRATED CARE NHS FOUNDATION TRUST | W60: Community Inpatient Services | Y60: RCB | Z60: KENT COMMUNITY HEALTH NHS FOUNDATION TRUST | AB60: RCB | AC60: KENT COMMUNITY HEALTH NHS FOUNDATION TRUST
T61: QHM | U61: RNN | V61: NORTH CUMBRIA INTEGRATED CARE NHS FOUNDATION TRUST | W61: Community Nursing Services | Y61: RCD | Z61: LANCASHIRE & SOUTH CUMBRIA NHS FOUNDATION TRUST | AB61: RCD | AC61: LANCASHIRE & SOUTH CUMBRIA NHS FOUNDATION TRUST
T62: QHM | U62: RNN | V62: NORTH CUMBRIA INTEGRATED CARE NHS FOUNDATION TRUST | W62: Rehabilitation & Therapy Services | Y62: RCF | Z62: LANCASTER HOUSE CONSULTING DIAGNOSTICS SURGICAL LTD HQ | AB62: RCF | AC62: LANCASTER HOUSE CONSULTING DIAGNOSTICS SURGICAL LTD HQ
T63: QHM | U63: RNN | V63: NORTH CUMBRIA INTEGRATED CARE NHS FOUNDATION TRUST | W63: Specialist Services | Y63: RCU | Z63: LEEDS COMMUNITY HEALTHCARE NHS TRUST | AB63: RCU | AC63: LEEDS COMMUNITY HEALTHCARE NHS TRUST
T64: QHM | U64: RVW | V64: NORTH TEES AND HARTLEPOOL NHS FOUNDATION TRUST | W64: Community Nursing Services | Y64: RDE | Z64: LEICESTERSHIRE PARTNERSHIP NHS TRUST | AB64: RDE | AC64: LEICESTERSHIRE PARTNERSHIP NHS TRUST
T65: QHM | U65: RVW | V65: NORTH TEES AND HARTLEPOOL NHS FOUNDATION TRUST | W65: Rehabilitation & Therapy Services | Y65: RDR | Z65: LEWISHAM AND GREENWICH NHS TRUST | AB65: RDR | AC65: LEWISHAM AND GREENWICH NHS TRUST
T66: QHM | U66: RVW | V66: NORTH TEES AND HARTLEPOOL NHS FOUNDATION TRUST | W66: Specialist Services | Y66: RDU | Z66: LINCOLNSHIRE COMMUNITY HEALTH SERVICES NHS TRUST | AB66: RDU | AC66: LINCOLNSHIRE COMMUNITY HEALTH SERVICES NHS TRUST
T67: QHM | U67: RTF | V67: NORTHUMBRIA HEALTHCARE NHS FOUNDATION TRUST | W67: Community Nursing Services | Y67: RDY | Z67: LIVEWELL SOUTHWEST | AB67: RDY | AC67: LIVEWELL SOUTHWEST
T68: QHM | U68: RTF | V68: NORTHUMBRIA HEALTHCARE NHS FOUNDATION TRUST | W68: Rehabilitation & Therapy Services | Y68: RFR | Z68: LLR PROVIDER COMPANY LTD | AB68: RFR | AC68: LLR PROVIDER COMPANY LTD
T69: QHM | U69: RTF | V69: NORTHUMBRIA HEALTHCARE NHS FOUNDATION TRUST | W69: Specialist Services | Y69: RGR | Z69: LOCALA COMMUNITY PARTNERSHIPS CIC | AB69: RGR | AC69: LOCALA COMMUNITY PARTNERSHIPS CIC
T70: QHM | U70: RTR | V70: SOUTH TEES HOSPITALS NHS FOUNDATION TRUST | W70: Children & Family Services | Y70: RH5 | Z70: LONDON NORTH WEST UNIVERSITY HEALTHCARE NHS TRUST | AB70: RH5 | AC70: LONDON NORTH WEST UNIVERSITY HEALTHCARE NHS TRUST
T71: QHM | U71: RTR | V71: SOUTH TEES HOSPITALS NHS FOUNDATION TRUST | W71: Community Nursing Services | Y71: RH8 | Z71: MANCHESTER UNIVERSITY NHS FOUNDATION TRUST | AB71: RH8 | AC71: MANCHESTER UNIVERSITY NHS FOUNDATION TRUST
T72: QHM | U72: RTR | V72: SOUTH TEES HOSPITALS NHS FOUNDATION TRUST | W72: Rehabilitation & Therapy Services | Y72: RHA | Z72: MASTERCALL HEALTHCARE | AB72: RHA | AC72: MASTERCALL HEALTHCARE
T73: QHM | U73: RTR | V73: SOUTH TEES HOSPITALS NHS FOUNDATION TRUST | W73: Specialist Services | Y73: RHQ | Z73: MEDWAY COMMUNITY HEALTHCARE | AB73: RHQ | AC73: MEDWAY COMMUNITY HEALTHCARE
T74: QHM | U74: R0B | V74: SOUTH TYNESIDE AND SUNDERLAND NHS FOUNDATION TRUST | W74: Children & Family Services | Y74: RJ1 | Z74: MERSEY CARE NHS FOUNDATION TRUST | AB74: RJ1 | AC74: MERSEY CARE NHS FOUNDATION TRUST
T75: QHM | U75: R0B | V75: SOUTH TYNESIDE AND SUNDERLAND NHS FOUNDATION TRUST | W75: Community Healthcare Other | Y75: RJ2 | Z75: MID CHESHIRE HOSPITALS NHS FOUNDATION TRUST | AB75: RJ2 | AC75: MID CHESHIRE HOSPITALS NHS FOUNDATION TRUST
T76: QHM | U76: R0B | V76: SOUTH TYNESIDE AND SUNDERLAND NHS FOUNDATION TRUST | W76: Community Inpatient Services | Y76: RJ6 | Z76: MID HAMPSHIRE HEALTHCARE LIMITED | AB76: RJ6 | AC76: MID HAMPSHIRE HEALTHCARE LIMITED
T77: QHM | U77: R0B | V77: SOUTH TYNESIDE AND SUNDERLAND NHS FOUNDATION TRUST | W77: Community Nursing Services | Y77: RJ7 | Z77: MID YORKSHIRE HOSPITALS NHS TRUST | AB77: RJ7 | AC77: MID YORKSHIRE HOSPITALS NHS TRUST
T78: QHM | U78: RTD | V78: THE NEWCASTLE UPON TYNE HOSPITALS NHS FOUNDATION TRUST | W78: Community Healthcare Other | Y78: RJ8 | Z78: MIDLANDS PARTNERSHIP NHS FOUNDATION TRUST | AB78: RJ8 | AC78: MIDLANDS PARTNERSHIP NHS FOUNDATION TRUST
T79: QJ2 | U79: RY8 | V79: DERBYSHIRE COMMUNITY HEALTH SERVICES NHS FOUNDATION TRUST | W79: Children & Family Services | Y79: RJC | Z79: MILTON KEYNES URGENT CARE SERVICES CIC HQ | AB79: RJC | AC79: MILTON KEYNES URGENT CARE SERVICES CIC HQ
T80: QJ2 | U80: RY8 | V80: DERBYSHIRE COMMUNITY HEALTH SERVICES NHS FOUNDATION TRUST | W80: Community Healthcare Other | Y80: RJN | Z80: NEIGHBOURHOOD CARE LIMITED | AB80: RJN | AC80: NEIGHBOURHOOD CARE LIMITED
T81: QJ2 | U81: RY8 | V81: DERBYSHIRE COMMUNITY HEALTH SERVICES NHS FOUNDATION TRUST | W81: Community Nursing Services | Y81: RK9 | Z81: NORFOLK COMMUNITY HEALTH AND CARE NHS TRUST | AB81: RK9 | AC81: NORFOLK COMMUNITY HEALTH AND CARE NHS TRUST
T82: QJ2 | U82: RY8 | V82: DERBYSHIRE COMMUNITY HEALTH SERVICES NHS FOUNDATION TRUST | W82: Rehabilitation & Therapy Services | Y82: RKE | Z82: NORTH CUMBRIA INTEGRATED CARE NHS FOUNDATION TRUST | AB82: RKE | AC82: NORTH CUMBRIA INTEGRATED CARE NHS FOUNDATION TRUST
T83: QJ2 | U83: RY8 | V83: DERBYSHIRE COMMUNITY HEALTH SERVICES NHS FOUNDATION TRUST | W83: Specialist Services | Y83: RKL | Z83: NORTH EAST LONDON NHS FOUNDATION TRUST | AB83: RKL | AC83: NORTH EAST LONDON NHS FOUNDATION TRUST
T84: QJ2 | U84: RXM | V84: DERBYSHIRE HEALTHCARE NHS FOUNDATION TRUST | W84: Children & Family Services | Y84: RL4 | Z84: NORTH HAMPSHIRE URGENT CARE | AB84: RL4 | AC84: NORTH HAMPSHIRE URGENT CARE
T85: QJG | U85: RDE | V85: EAST SUFFOLK AND NORTH ESSEX NHS FOUNDATION TRUST | W85: Community Healthcare Other | Y85: RLQ | Z85: NORTH TEES AND HARTLEPOOL NHS FOUNDATION TRUST | AB85: RLQ | AC85: NORTH TEES AND HARTLEPOOL NHS FOUNDATION TRUST
T86: QJG | U86: RDE | V86: EAST SUFFOLK AND NORTH ESSEX NHS FOUNDATION TRUST | W86: Community Inpatient Services | Y86: RMC | Z86: NORTHAMPTONSHIRE HEALTHCARE NHS FOUNDATION TRUST | AB86: RMC | AC86: NORTHAMPTONSHIRE HEALTHCARE NHS FOUNDATION TRUST
T87: QJG | U87: RDE | V87: EAST SUFFOLK AND NORTH ESSEX NHS FOUNDATION TRUST | W87: Community Nursing Services | Y87: RNA | Z87: NORTHERN DEVON HEALTHCARE NHS TRUST | AB87: RNA | AC87: NORTHERN DEVON HEALTHCARE NHS TRUST
T88: QJG | U88: RDE | V88: EAST SUFFOLK AND NORTH ESSEX NHS FOUNDATION TRUST | W88: Rehabilitation & Therapy Services | Y88: RNN | Z88: NORTHUMBRIA HEALTHCARE NHS FOUNDATION TRUST | AB88: RNN | AC88: NORTHUMBRIA HEALTHCARE NHS FOUNDATION TRUST
T89: QJG | U89: RDE | V89: EAST SUFFOLK AND NORTH ESSEX NHS FOUNDATION TRUST | W89: Specialist Services | Y89: RNU | Z89: NOTTINGHAM CITYCARE PARTNERSHIP | AB89: RNU | AC89: NOTTINGHAM CITYCARE PARTNERSHIP
T90: QJG | U90: RGR | V90: WEST SUFFOLK NHS FOUNDATION TRUST | W90: Community Inpatient Services | Y90: RP1 | Z90: NOTTINGHAMSHIRE HEALTHCARE NHS FOUNDATION TRUST | AB90: RP1 | AC90: NOTTINGHAMSHIRE HEALTHCARE NHS FOUNDATION TRUST
T91: QJG | U91: RGR | V91: WEST SUFFOLK NHS FOUNDATION TRUST | W91: Community Nursing Services | Y91: RPG | Z91: NOVUS HEALTH LTD | AB91: RPG | AC91: NOVUS HEALTH LTD
T92: QJG | U92: RGR | V92: WEST SUFFOLK NHS FOUNDATION TRUST | W92: Rehabilitation & Therapy Services | Y92: RQM | Z92: OXFORD HEALTH NHS FOUNDATION TRUST | AB92: RQM | AC92: OXFORD HEALTH NHS FOUNDATION TRUST
T93: QJK | U93: RBZ | V93: NORTHERN DEVON HEALTHCARE NHS TRUST | W93: Community Healthcare Other | Y93: RQX | Z93: OXLEAS NHS FOUNDATION TRUST | AB93: RQX | AC93: OXLEAS NHS FOUNDATION TRUST
T94: QJK | U94: RBZ | V94: NORTHERN DEVON HEALTHCARE NHS TRUST | W94: Community Inpatient Services | Y94: RRE | Z94: PENNINE MUSCULOSKELETAL PARTNERSHIP (ICATS) | AB94: RRE | AC94: PENNINE MUSCULOSKELETAL PARTNERSHIP (ICATS)
T95: QJK | U95: RBZ | V95: NORTHERN DEVON HEALTHCARE NHS TRUST | W95: Community Nursing Services | Y95: RRF | Z95: PRACTICE PLUS GROUP | AB95: RRF | AC95: PRACTICE PLUS GROUP
T96: QJK | U96: RBZ | V96: NORTHERN DEVON HEALTHCARE NHS TRUST | W96: Rehabilitation & Therapy Services | Y96: RRK | Z96: PROVIDE | AB96: RRK | AC96: PROVIDE
T97: QJK | U97: RBZ | V97: NORTHERN DEVON HEALTHCARE NHS TRUST | W97: Specialist Services | Y97: RRP | Z97: ROTHERHAM DONCASTER AND SOUTH HUMBER NHS FOUNDATION TRUST | AB97: RRP | AC97: ROTHERHAM DONCASTER AND SOUTH HUMBER NHS FOUNDATION TRUST
T98: QJK | U98: RH8 | V98: ROYAL DEVON AND EXETER NHS FOUNDATION TRUST | W98: Community Healthcare Other | Y98: RT1 | Z98: ROYAL DEVON AND EXETER NHS FOUNDATION TRUST | AB98: RT1 | AC98: ROYAL DEVON AND EXETER NHS FOUNDATION TRUST
T99: QJK | U99: RH8 | V99: ROYAL DEVON AND EXETER NHS FOUNDATION TRUST | W99: Community Inpatient Services | Y99: RT5 | Z99: ROYAL SURREY COUNTY HOSPITAL NHS FOUNDATION TRUST | AB99: RT5 | AC99: ROYAL SURREY COUNTY HOSPITAL NHS FOUNDATION TRUST
T100: QJK | U100: RH8 | V100: ROYAL DEVON AND EXETER NHS FOUNDATION TRUST | W100: Community Nursing Services | Y100: RTD | Z100: SHEFFIELD CHILDREN'S NHS FOUNDATION TRUST | AB100: RTD | AC100: SHEFFIELD CHILDREN'S NHS FOUNDATION TRUST
T101: QJK | U101: RH8 | V101: ROYAL DEVON AND EXETER NHS FOUNDATION TRUST | W101: Rehabilitation & Therapy Services | Y101: RTF | Z101: SHEFFIELD TEACHING HOSPITALS NHS FOUNDATION TRUST | AB101: RTF | AC101: SHEFFIELD TEACHING HOSPITALS NHS FOUNDATION TRUST
T102: QJK | U102: RH8 | V102: ROYAL DEVON AND EXETER NHS FOUNDATION TRUST | W102: Specialist Services | Y102: RTQ | Z102: SHROPSHIRE COMMUNITY HEALTH NHS TRUST | AB102: RTQ | AC102: SHROPSHIRE COMMUNITY HEALTH NHS TRUST
T103: QJK | U103: RA9 | V103: TORBAY AND SOUTH DEVON NHS FOUNDATION TRUST | W103: Children & Family Services | Y103: RTR | Z103: SOLENT MEDICAL SERVICES LIMITED | AB103: RTR | AC103: SOLENT MEDICAL SERVICES LIMITED
T104: QJK | U104: RA9 | V104: TORBAY AND SOUTH DEVON NHS FOUNDATION TRUST | W104: Community Healthcare Other | Y104: RTX | Z104: SOLENT NHS TRUST | AB104: RTX | AC104: SOLENT NHS TRUST
T105: QJK | U105: RA9 | V105: TORBAY AND SOUTH DEVON NHS FOUNDATION TRUST | W105: Community Inpatient Services | Y105: RV3 | Z105: SOMERSET NHS FOUNDATION TRUST | AB105: RV3 | AC105: SOMERSET NHS FOUNDATION TRUST
T106: QJK | U106: RA9 | V106: TORBAY AND SOUTH DEVON NHS FOUNDATION TRUST | W106: Rehabilitation & Therapy Services | Y106: RV9 | Z106: SOUTH TEES HOSPITALS NHS FOUNDATION TRUST | AB106: RV9 | AC106: SOUTH TEES HOSPITALS NHS FOUNDATION TRUST
T107: QJK | U107: RA9 | V107: TORBAY AND SOUTH DEVON NHS FOUNDATION TRUST | W107: Specialist Services | Y107: RVR | Z107: SOUTH TYNESIDE AND SUNDERLAND NHS FOUNDATION TRUST | AB107: RVR | AC107: SOUTH TYNESIDE AND SUNDERLAND NHS FOUNDATION TRUST
T108: QJK | U108: RK9 | V108: UNIVERSITY HOSPITALS PLYMOUTH NHS TRUST | W108: Children & Family Services | Y108: RVW | Z108: SOUTH WARWICKSHIRE NHS FOUNDATION TRUST | AB108: RVW | AC108: SOUTH WARWICKSHIRE NHS FOUNDATION TRUST
T109: QJM | U109: RY5 | V109: LINCOLNSHIRE COMMUNITY HEALTH SERVICES NHS TRUST | W109: Children & Family Services | Y109: RVY | Z109: SOUTH WEST YORKSHIRE PARTNERSHIP NHS FOUNDATION TRUST | AB109: RVY | AC109: SOUTH WEST YORKSHIRE PARTNERSHIP NHS FOUNDATION TRUST
T110: QJM | U110: RY5 | V110: LINCOLNSHIRE COMMUNITY HEALTH SERVICES NHS TRUST | W110: Community Healthcare Other | Y110: RW1 | Z110: SOUTHERN HEALTH NHS FOUNDATION TRUST | AB110: RW1 | AC110: SOUTHERN HEALTH NHS FOUNDATION TRUST
T111: QJM | U111: RY5 | V111: LINCOLNSHIRE COMMUNITY HEALTH SERVICES NHS TRUST | W111: Community Inpatient Services | Y111: RW4 | Z111: SOUTHPORT AND ORMSKIRK HOSPITAL NHS TRUST | AB111: RW4 | AC111: SOUTHPORT AND ORMSKIRK HOSPITAL NHS TRUST
T112: QJM | U112: RY5 | V112: LINCOLNSHIRE COMMUNITY HEALTH SERVICES NHS TRUST | W112: Community Nursing Services | Y112: RW5 | Z112: ST GEORGE'S UNIVERSITY HOSPITALS NHS FOUNDATION TRUST | AB112: RW5 | AC112: ST GEORGE'S UNIVERSITY HOSPITALS NHS FOUNDATION TRUST
T113: QJM | U113: RY5 | V113: LINCOLNSHIRE COMMUNITY HEALTH SERVICES NHS TRUST | W113: Rehabilitation & Therapy Services | Y113: RWJ | Z113: STOCKPORT NHS FOUNDATION TRUST | AB113: RWJ | AC113: STOCKPORT NHS FOUNDATION TRUST
T114: QJM | U114: RY5 | V114: LINCOLNSHIRE COMMUNITY HEALTH SERVICES NHS TRUST | W114: Specialist Services | Y114: RWK | Z114: SUFFOLK GP FEDERATION | AB114: RWK | AC114: SUFFOLK GP FEDERATION
T115: QK1 | U115: RT5 | V115: LEICESTERSHIRE PARTNERSHIP NHS TRUST | W115: Children & Family Services | Y115: RWX | Z115: SUSSEX COMMUNITY DERMATOLOGY SERVICE | AB115: RWX | AC115: SUSSEX COMMUNITY DERMATOLOGY SERVICE
T116: QK1 | U116: RT5 | V116: LEICESTERSHIRE PARTNERSHIP NHS TRUST | W116: Community Healthcare Other | Y116: RWY | Z116: SUSSEX COMMUNITY NHS FOUNDATION TRUST | AB116: RWY | AC116: SUSSEX COMMUNITY NHS FOUNDATION TRUST
T117: QK1 | U117: RT5 | V117: LEICESTERSHIRE PARTNERSHIP NHS TRUST | W117: Community Inpatient Services | Y117: RXA | Z117: TAURUS HEALTHCARE LTD | AB117: RXA | AC117: TAURUS HEALTHCARE LTD
T118: QK1 | U118: RT5 | V118: LEICESTERSHIRE PARTNERSHIP NHS TRUST | W118: Community Nursing Services | Y118: RXC | Z118: THE DUDLEY GROUP NHS FOUNDATION TRUST | AB118: RXC | AC118: THE DUDLEY GROUP NHS FOUNDATION TRUST
T119: QK1 | U119: RT5 | V119: LEICESTERSHIRE PARTNERSHIP NHS TRUST | W119: Rehabilitation & Therapy Services | Y119: RXE | Z119: THE NEWCASTLE UPON TYNE HOSPITALS NHS FOUNDATION TRUST | AB119: RXE | AC119: THE NEWCASTLE UPON TYNE HOSPITALS NHS FOUNDATION TRUST
T120: QK1 | U120: RT5 | V120: LEICESTERSHIRE PARTNERSHIP NHS TRUST | W120: Specialist Services | Y120: RXF | Z120: THE ROTHERHAM NHS FOUNDATION TRUST | AB120: RXF | AC120: THE ROTHERHAM NHS FOUNDATION TRUST
T121: QKK | U121: RJ1 | V121: GUY'S AND ST THOMAS' NHS FOUNDATION TRUST | W121: Children & Family Services | Y121: RXG | Z121: THE ROYAL HOSPITAL FOR NEURO-DISABILITY | AB121: RXG | AC121: THE ROYAL HOSPITAL FOR NEURO-DISABILITY
T122: QKK | U122: RJ1 | V122: GUY'S AND ST THOMAS' NHS FOUNDATION TRUST | W122: Community Nursing Services | Y122: RXL | Z122: THE ROYAL WOLVERHAMPTON NHS TRUST | AB122: RXL | AC122: THE ROYAL WOLVERHAMPTON NHS TRUST
T123: QKK | U123: RJ1 | V123: GUY'S AND ST THOMAS' NHS FOUNDATION TRUST | W123: Rehabilitation & Therapy Services | Y123: RXM | Z123: THE STROKE ASSOCIATION | AB123: RXM | AC123: THE STROKE ASSOCIATION
T124: QKK | U124: RJ1 | V124: GUY'S AND ST THOMAS' NHS FOUNDATION TRUST | W124: Specialist Services | Y124: RXQ | Z124: TORBAY AND SOUTH DEVON NHS FOUNDATION TRUST | AB124: RXQ | AC124: TORBAY AND SOUTH DEVON NHS FOUNDATION TRUST
T125: QKK | U125: RJ2 | V125: LEWISHAM AND GREENWICH NHS TRUST | W125: Children & Family Services | Y125: RXR | Z125: UNIVERSITY HOSPITALS BIRMINGHAM NHS FOUNDATION TRUST | AB125: RXR | AC125: UNIVERSITY HOSPITALS BIRMINGHAM NHS FOUNDATION TRUST
T126: QKK | U126: RJ2 | V126: LEWISHAM AND GREENWICH NHS TRUST | W126: Community Healthcare Other | Y126: RY2 | Z126: UNIVERSITY HOSPITALS OF MORECAMBE BAY NHS FOUNDATION TRUST | AB126: RY2 | AC126: UNIVERSITY HOSPITALS OF MORECAMBE BAY NHS FOUNDATION TRUST
T127: QKK | U127: RJ2 | V127: LEWISHAM AND GREENWICH NHS TRUST | W127: Community Nursing Services | Y127: RY3 | Z127: UNIVERSITY HOSPITALS PLYMOUTH NHS TRUST | AB127: RY3 | AC127: UNIVERSITY HOSPITALS PLYMOUTH NHS TRUST
T128: QKK | U128: RJ2 | V128: LEWISHAM AND GREENWICH NHS TRUST | W128: Rehabilitation & Therapy Services | Y128: RY4 | Z128: VIRGIN CARE LTD | AB128: RY4 | AC128: VIRGIN CARE LTD
T129: QKK | U129: RJ2 | V129: LEWISHAM AND GREENWICH NHS TRUST | W129: Specialist Services | Y129: RY5 | Z129: VIRGIN CARE SERVICES LTD | AB129: RY5 | AC129: VIRGIN CARE SERVICES LTD
T130: QKK | U130: RPG | V130: OXLEAS NHS FOUNDATION TRUST | W130: Children & Family Services | Y130: RY6 | Z130: WALSALL HEALTHCARE NHS TRUST | AB130: RY6 | AC130: WALSALL HEALTHCARE NHS TRUST
T131: QKK | U131: RPG | V131: OXLEAS NHS FOUNDATION TRUST | W131: Community Healthcare Other | Y131: RY7 | Z131: WEST LONDON NHS TRUST | AB131: RY7 | AC131: WEST LONDON NHS TRUST
T132: QKK | U132: RPG | V132: OXLEAS NHS FOUNDATION TRUST | W132: Community Inpatient Services | Y132: RY8 | Z132: WEST SUFFOLK NHS FOUNDATION TRUST | AB132: RY8 | AC132: WEST SUFFOLK NHS FOUNDATION TRUST
T133: QKK | U133: RPG | V133: OXLEAS NHS FOUNDATION TRUST | W133: Community Nursing Services | Y133: RY9 | Z133: WHITTINGTON HEALTH NHS TRUST | AB133: RY9 | AC133: WHITTINGTON HEALTH NHS TRUST
T134: QKK | U134: RPG | V134: OXLEAS NHS FOUNDATION TRUST | W134: Rehabilitation & Therapy Services | Y134: RYV | Z134: WILTSHIRE HEALTH & CARE | AB134: RYV | AC134: WILTSHIRE HEALTH & CARE
T135: QKK | U135: RPG | V135: OXLEAS NHS FOUNDATION TRUST | W135: Specialist Services | Y135: RYW | Z135: WIRRAL COMMUNITY HEALTH AND CARE NHS FOUNDATION TRUST | AB135: RYW | AC135: WIRRAL COMMUNITY HEALTH AND CARE NHS FOUNDATION TRUST
T136: QKS | U136: RYY | V136: KENT COMMUNITY HEALTH NHS FOUNDATION TRUST | W136: Children & Family Services | Y136: RYX | Z136: WRIGHTINGTON, WIGAN AND LEIGH NHS FOUNDATION TRUST | AB136: RYX | AC136: WRIGHTINGTON, WIGAN AND LEIGH NHS FOUNDATION TRUST
T137: QKS | U137: RYY | V137: KENT COMMUNITY HEALTH NHS FOUNDATION TRUST | W137: Community Healthcare Other | Y137: RYY | Z137: WYE VALLEY NHS TRUST | AB137: RYY | AC137: WYE VALLEY NHS TRUST
T138: QKS | U138: RYY | V138: KENT COMMUNITY HEALTH NHS FOUNDATION TRUST | W138: Community Inpatient Services | Y138: TAD | Z138: YORK AND SCARBOROUGH TEACHING HOSPITALS NHS FOUNDATION TRUST | AB138: TAD | AC138: YORK AND SCARBOROUGH TEACHING HOSPITALS NHS FOUNDATION TRUST
T139: QKS | U139: RYY | V139: KENT COMMUNITY HEALTH NHS FOUNDATION TRUST | W139: Community Nursing Services | Y139: TAJ | Z139: YOUR HEALTHCARE | AB139: TAJ | AC139: YOUR HEALTHCARE
T140: QKS | U140: RYY | V140: KENT COMMUNITY HEALTH NHS FOUNDATION TRUST | W140: Rehabilitation & Therapy Services
T141: QKS | U141: RYY | V141: KENT COMMUNITY HEALTH NHS FOUNDATION TRUST | W141: Specialist Services
T142: QM7 | U142: RY4 | V142: HERTFORDSHIRE COMMUNITY NHS TRUST | W142: Children & Family Services
T143: QM7 | U143: RY4 | V143: HERTFORDSHIRE COMMUNITY NHS TRUST | W143: Community Healthcare Other
T144: QM7 | U144: RY4 | V144: HERTFORDSHIRE COMMUNITY NHS TRUST | W144: Community Inpatient Services
T145: QM7 | U145: RY4 | V145: HERTFORDSHIRE COMMUNITY NHS TRUST | W145: Community Nursing Services
T146: QM7 | U146: RY4 | V146: HERTFORDSHIRE COMMUNITY NHS TRUST | W146: Rehabilitation & Therapy Services
T147: QM7 | U147: RY4 | V147: HERTFORDSHIRE COMMUNITY NHS TRUST | W147: Specialist Services
T148: QMF | U148: RWK | V148: EAST LONDON NHS FOUNDATION TRUST | W148: Children & Family Services
T149: QMF | U149: RWK | V149: EAST LONDON NHS FOUNDATION TRUST | W149: Community Healthcare Other
T150: QMF | U150: RWK | V150: EAST LONDON NHS FOUNDATION TRUST | W150: Community Inpatient Services
T151: QMF | U151: RWK | V151: EAST LONDON NHS FOUNDATION TRUST | W151: Community Nursing Services
T152: QMF | U152: RWK | V152: EAST LONDON NHS FOUNDATION TRUST | W152: Rehabilitation & Therapy Services
T153: QMF | U153: RWK | V153: EAST LONDON NHS FOUNDATION TRUST | W153: Specialist Services
T154: QMF | U154: RQX | V154: HOMERTON UNIVERSITY HOSPITAL NHS FOUNDATION TRUST | W154: Children & Family Services
T155: QMF | U155: RQX | V155: HOMERTON UNIVERSITY HOSPITAL NHS FOUNDATION TRUST | W155: Community Nursing Services
T156: QMF | U156: RQX | V156: HOMERTON UNIVERSITY HOSPITAL NHS FOUNDATION TRUST | W156: Rehabilitation & Therapy Services
T157: QMF | U157: RQX | V157: HOMERTON UNIVERSITY HOSPITAL NHS FOUNDATION TRUST | W157: Specialist Services
T158: QMF | U158: RAT | V158: NORTH EAST LONDON NHS FOUNDATION TRUST | W158: Children & Family Services
T159: QMF | U159: RAT | V159: NORTH EAST LONDON NHS FOUNDATION TRUST | W159: Community Healthcare Other
T160: QMF | U160: RAT | V160: NORTH EAST LONDON NHS FOUNDATION TRUST | W160: Community Inpatient Services
T161: QMF | U161: RAT | V161: NORTH EAST LONDON NHS FOUNDATION TRUST | W161: Community Nursing Services
T162: QMF | U162: RAT | V162: NORTH EAST LONDON NHS FOUNDATION TRUST | W162: Rehabilitation & Therapy Services
T163: QMF | U163: RAT | V163: NORTH EAST LONDON NHS FOUNDATION TRUST | W163: Specialist Services
T164: QMJ | U164: RRP | V164: BARNET, ENFIELD AND HARINGEY MENTAL HEALTH NHS TRUST | W164: Children & Family Services
T165: QMJ | U165: RRP | V165: BARNET, ENFIELD AND HARINGEY MENTAL HEALTH NHS TRUST | W165: Community Inpatient Services
T166: QMJ | U166: RRP | V166: BARNET, ENFIELD AND HARINGEY MENTAL HEALTH NHS TRUST | W166: Community Nursing Services
T167: QMJ | U167: RRP | V167: BARNET, ENFIELD AND HARINGEY MENTAL HEALTH NHS TRUST | W167: Rehabilitation & Therapy Services
T168: QMJ | U168: RRP | V168: BARNET, ENFIELD AND HARINGEY MENTAL HEALTH NHS TRUST | W168: Specialist Services
T169: QMJ | U169: RV3 | V169: CENTRAL AND NORTH WEST LONDON NHS FOUNDATION TRUST | W169: Children & Family Services
T170: QMJ | U170: RV3 | V170: CENTRAL AND NORTH WEST LONDON NHS FOUNDATION TRUST | W170: Community Healthcare Other
T171: QMJ | U171: RV3 | V171: CENTRAL AND NORTH WEST LONDON NHS FOUNDATION TRUST | W171: Community Inpatient Services
T172: QMJ | U172: RV3 | V172: CENTRAL AND NORTH WEST LONDON NHS FOUNDATION TRUST | W172: Community Nursing Services
T173: QMJ | U173: RV3 | V173: CENTRAL AND NORTH WEST LONDON NHS FOUNDATION TRUST | W173: Rehabilitation & Therapy Services
T174: QMJ | U174: RV3 | V174: CENTRAL AND NORTH WEST LONDON NHS FOUNDATION TRUST | W174: Specialist Services
T175: QMJ | U175: RKE | V175: WHITTINGTON HEALTH NHS TRUST | W175: Children & Family Services
T176: QMJ | U176: RKE | V176: WHITTINGTON HEALTH NHS TRUST | W176: Rehabilitation & Therapy Services
T177: QMJ | U177: RKE | V177: WHITTINGTON HEALTH NHS TRUST | W177: Specialist Services
T178: QMM | U178: RY3 | V178: NORFOLK COMMUNITY HEALTH AND CARE NHS TRUST | W178: Children & Family Services
T179: QMM | U179: RY3 | V179: NORFOLK COMMUNITY HEALTH AND CARE NHS TRUST | W179: Community Inpatient Services
T180: QMM | U180: RY3 | V180: NORFOLK COMMUNITY HEALTH AND CARE NHS TRUST | W180: Community Nursing Services
T181: QMM | U181: RY3 | V181: NORFOLK COMMUNITY HEALTH AND CARE NHS TRUST | W181: Rehabilitation & Therapy Services
T182: QMM | U182: RY3 | V182: NORFOLK COMMUNITY HEALTH AND CARE NHS TRUST | W182: Specialist Services
T183: QNC | U183: RRE | V183: MIDLANDS PARTNERSHIP NHS FOUNDATION TRUST | W183: Children & Family Services
T184: QNC | U184: RRE | V184: MIDLANDS PARTNERSHIP NHS FOUNDATION TRUST | W184: Community Healthcare Other
T185: QNC | U185: RRE | V185: MIDLANDS PARTNERSHIP NHS FOUNDATION TRUST | W185: Community Inpatient Services
T186: QNC | U186: RRE | V186: MIDLANDS PARTNERSHIP NHS FOUNDATION TRUST | W186: Community Nursing Services
T187: QNC | U187: RRE | V187: MIDLANDS PARTNERSHIP NHS FOUNDATION TRUST | W187: Rehabilitation & Therapy Services
T188: QNC | U188: RRE | V188: MIDLANDS PARTNERSHIP NHS FOUNDATION TRUST | W188: Specialist Services
T189: QNQ | U189: RWX | V189: BERKSHIRE HEALTHCARE NHS FOUNDATION TRUST | W189: Children & Family Services
T190: QNQ | U190: RWX | V190: BERKSHIRE HEALTHCARE NHS FOUNDATION TRUST | W190: Community Inpatient Services
T191: QNQ | U191: RWX | V191: BERKSHIRE HEALTHCARE NHS FOUNDATION TRUST | W191: Community Nursing Services
T192: QNQ | U192: RWX | V192: BERKSHIRE HEALTHCARE NHS FOUNDATION TRUST | W192: Rehabilitation & Therapy Services
T193: QNQ | U193: RWX | V193: BERKSHIRE HEALTHCARE NHS FOUNDATION TRUST | W193: Specialist Services
T194: QNQ | U194: RDU | V194: FRIMLEY HEALTH NHS FOUNDATION TRUST | W194: Community Healthcare Other
T195: QNX | U195: RXC | V195: EAST SUSSEX HEALTHCARE NHS TRUST | W195: Community Inpatient Services
T196: QNX | U196: RXC | V196: EAST SUSSEX HEALTHCARE NHS TRUST | W196: Community Nursing Services
T197: QNX | U197: RXC | V197: EAST SUSSEX HEALTHCARE NHS TRUST | W197: Rehabilitation & Therapy Services
T198: QNX | U198: RXC | V198: EAST SUSSEX HEALTHCARE NHS TRUST | W198: Specialist Services
T199: QNX | U199: RDR | V199: SUSSEX COMMUNITY NHS FOUNDATION TRUST | W199: Children & Family Services
T200: QNX | U200: RDR | V200: SUSSEX COMMUNITY NHS FOUNDATION TRUST | W200: Community Healthcare Other
... 297 more rows
